Cogmind - Beta 16 @@@ ROGUE MODE // 2025.11.09 @ 16:22:11 Player: aoemica Result: Escaped! Performance ------------- Evolutions (9) 4500 Regions Visited (41) 8200 Robots Destroyed (508) 2540 Value Destroyed (31704) 31704 Prototype IDs (90) 1800 Alien Tech Used (6) 1200 Bonus (30120) 30120 TOTAL SCORE: 80064 Bonus ------- High Alert Combat Kills 2531 Follower Combat Kills 14069 Destroyed Unchained 1000 Entered Garrisons 2400 Used RIF Installer 8000 Aligned with FarCom 300 Win 3000 Friendly Fire -1180 Cogmind --------- Core Integrity 1120/1600 Matter 257/300 Energy 593/600 System Corruption 35% Temperature Cool (3) +ITN Movement Treading (305) Ox2 Location To Epsilon Eridani Parts ------- > --- POWER (3) -------- Quantum Reactor Quantum Reactor > --- PROPULSION (2) --- Biometal Heavy Treads > --- UTILITY (18) ----- Advanced Heat Sink Huge Storage Unit Enhanced Optical Array Experimental Targeting Computer Core Analyzer Heavy Regenerative Plating (fused) Graphene Brace Advanced Point Defense System Relay Coupler [NC] (52) Relay Coupler [C] (57) Relay Coupler [C] (57) Relay Coupler [C] (53) Relay Coupler [C] (21) Relay Coupler [Sentry] (45) Relay Coupler [Specialist] (41) Relay Coupler [Hunter] (27) Relay Coupler [Behemoth] (31) > --- WEAPON (2) ------- Enhanced Nova Cannon Enhanced Nova Cannon > --- INVENTORY (27) --- Armored Heavy Treads Improved Energy Well (400) Experimental Weapon Shielding Layered Heavy Armor Plating Advanced Force Field Relay Coupler [NC] (57) Relay Coupler [C] (69) Relay Coupler [C] (59) Relay Coupler [Hunter] (45) Relay Coupler [Behemoth] (33) Relay Coupler [Proto] (30) Relay Coupler [Proto] (30) Relay Coupler [Proto] (30) Microwarp Drive Sigix Sheargun Sigix Sheargun Compact HERF Cannon Hardcell Cannon Tesla Bomb Launcher Tiamat Missile Launcher Advanced Remote Datajack Peak State ------------ > --- POWER ------------ Particle Reactor Reinforced Quantum Reactor Reinforced Quantum Reactor > --- PROPULSION ------- Advanced Heavy Siege Treads > --- UTILITY ---------- Experimental Cooling System Advanced Coolant Injector Huge Storage Unit Improved Energy Well Experimental Optical Array Advanced Targeting Computer Experimental Targeting Computer Heavy Regenerative Plating Graphene Brace Advanced Force Field Relay Coupler [C] Relay Coupler [C] Relay Coupler [C] Relay Coupler [Sentry] Relay Coupler [Hunter] Relay Coupler [Behemoth] Improved Dynamic Insulation System > --- WEAPON ----------- Sigix Sheargun Sigix Sheargun > --- INVENTORY -------- Improved Quantum Reactor Armored Heavy Treads Experimental Weapon Shielding Thermal Barrier Advanced Point Defense System Relay Coupler [NC] Relay Coupler [NC] Relay Coupler [NC] Relay Coupler [NC] Relay Coupler [C] Relay Coupler [C] Relay Coupler [C] Relay Coupler [Specialist] Relay Coupler [Hunter] Relay Coupler [Behemoth] Transdimensional Reconstructor High-powered Transdimensional Reconstructor Microwarp Drive Compact HERF Cannon Enhanced Nova Cannon Enhanced Nova Cannon Tesla Bomb Launcher Tiamat Missile Launcher Advanced Remote Datajack [Rating: 203] Favorites ----------- Power Antimatter Reactor Engine Improved Deuterium Engine Power Core Light Nuclear Core Reactor Antimatter Reactor Propulsion Light Treads Treads Light Treads Utility Relay Coupler [C] Device Improved Cooling System Storage Huge Storage Unit Processor Advanced Targeting Computer Hackware Relay Coupler [C] Protection Layered Medium Armor Plating Weapon Enhanced Nova Cannon Energy Gun Particle Gun Energy Cannon Enhanced Nova Cannon Ballistic Gun Heavy Assault Rifle Ballistic Cannon Hardcell Cannon Launcher Rocket Launcher Special Weapon Advanced Remote Datajack Slashing Weapon Great Axe Special Melee Weapon Datajack Build | -11 -10 -10 -9 -9 -9 -8 -8 -8 -8 -8 -8 -8 -7 -7 -7 -7 -7 -7 -6 -6 -6 -6 -5 -5 -5 -5 -5 -5 -4 -4 -3 -3 -3 -3 -2 -2 -2 -2 -1 -1 -1 ------- Run | Yrd Mat Min Mat Min Exi Min Mat Gar Mat Gar Mat Gar Fac Was Fac Gar Fac Gar Fac Was Fac Gar Fac Was Fac Gar Fac Gar Fac Arm Res Gar Res Gar Res Qua Sec Gar Acc Gar Acc Slots Evolved 18 | . . . 2 . . . 2 . . . . . 2 . . . . . 2 . . . 2 . . . . . 2 . 2 . . . 2 . . . 2 . . Power 2 | . . . . . . . . . . . . . 1 . . . . . . . . . . . . . . . . . . . . . 1 . . . . . . Propulsion . | . . . . . . . . . . . . . . . . . . . . . . . . . . . . . . . . . . . . . . . . . . Utility 16 | . . . 2 . . . 2 . . . . . 1 . . . . . 2 . . . 2 . . . . . 2 . 2 . . . 1 . . . 2 . . Weapon . | . . . . . . . . . . . . . . . . . . . . . . . . . . . . . . . . . . . . . . . . . . Parts Attached 390 | 7 6 1 18 10 1 . 4 4 18 6 11 18 22 7 . 24 6 7 7 4 3 18 1 5 1 7 4 10 9 7 6 18 4 10 8 20 22 11 1 20 24 Power 63 | 1 2 . 2 1 . . . . 1 1 1 3 7 2 . 4 1 1 1 2 . 2 . 2 . . . . . 1 2 1 1 . 2 4 5 4 . 3 6 Engine 20 | 1 2 . 2 1 . . . . 1 1 1 2 3 . . 3 1 . . . . 2 . . . . . . . . . . . . . . . . . . . Core 8 | . . . . . . . . . . . . 1 4 . . . . 1 1 . . . . . . . . . . . 1 . . . . . . . . . . Reactor 35 | . . . . . . . . . . . . . . 2 . 1 . . . 2 . . . 2 . . . . . 1 1 1 1 . 2 4 5 4 . 3 6 Propulsion 44 | 2 . . 4 1 . . . . 10 . 2 6 5 1 . 1 1 . . 1 . 1 . . . . 1 . . . . 3 . . . 1 1 1 . 1 1 Treads 44 | 2 . . 4 1 . . . . 10 . 2 6 5 1 . 1 1 . . 1 . 1 . . . . 1 . . . . 3 . . . 1 1 1 . 1 1 Leg . | . . . . . . . . . . . . . . . . . . . . . . . . . . . . . . . . . . . . . . . . . . Wheel . | . . . . . . . . . . . . . . . . . . . . . . . . . . . . . . . . . . . . . . . . . . Hover . | . . . . . . . . . . . . . . . . . . . . . . . . . . . . . . . . . . . . . . . . . . Flight . | . . . . . . . . . . . . . . . . . . . . . . . . . . . . . . . . . . . . . . . . . . Utility 216 | 2 3 . 6 2 . . 3 1 3 4 6 7 7 4 . 12 4 6 5 1 3 14 1 2 1 7 2 10 8 3 4 13 3 8 5 10 13 4 1 13 15 Device 48 | 1 1 . 2 . . . 1 . . 2 . . 1 1 . 3 . . 2 . 1 1 . 1 . . 1 2 1 . 3 . . . 1 7 6 . . 6 4 Storage 8 | 1 1 . 1 . . . . . 1 . 1 . . 1 . . . . 1 . . . . . . . . . . . . . . . . . . . . . 1 Processor 14 | . . . . . . . 1 . . . . . 1 . . 1 . . . . . 1 . . . . . . 2 . . 2 . . . . 2 . . 1 3 Hackware 109 | . . . . . . . 1 . . 1 2 7 3 1 . 5 3 5 1 . 2 8 1 . 1 7 1 8 4 3 1 10 2 7 4 1 3 4 1 5 7 Protection 37 | . 1 . 3 2 . . . 1 2 1 3 . 2 1 . 3 1 1 1 1 . 4 . 1 . . . . 1 . . 1 1 1 . 2 2 . . 1 . Artifact . | . . . . . . . . . . . . . . . . . . . . . . . . . . . . . . . . . . . . . . . . . . Weapon 67 | 2 1 1 6 6 1 . 1 3 4 1 2 2 3 . . 7 . . 1 . . 1 . 1 . . 1 . 1 3 . 1 . 2 1 5 3 2 . 3 2 Energy Gun 6 | . . 1 1 . . . . . . . . . . . . . . . . . . . . . . . . . . . . . . . . 1 1 1 . 1 . Energy Cannon 25 | . . . . 1 . . . 3 2 . . . 2 . . 6 . . . . . . . 1 . . 1 . . 2 . . . 1 . 2 1 1 . 1 1 Ballistic Gun 12 | 2 1 . 4 1 . . 1 . 1 . 2 . . . . . . . . . . . . . . . . . . . . . . . . . . . . . . Ballistic Cannon 2 | . . . . . . . . . 1 . . . . . . . . . . . . . . . . . . . . . . . . . . . . . . . 1 Launcher 8 | . . . 1 3 . . . . . . . 1 . . . 1 . . 1 . . . . . . . . . . 1 . . . . . . . . . . . Special Weapon 12 | . . . . . . . . . . 1 . 1 1 . . . . . . . . 1 . . . . . . 1 . . 1 . 1 1 2 1 . . 1 . Impact Weapon . | . . . . . . . . . . . . . . . . . . . . . . . . . . . . . . . . . . . . . . . . . . Slashing Weapon 1 | . . . . 1 . . . . . . . . . . . . . . . . . . . . . . . . . . . . . . . . . . . . . Piercing Weapon . | . . . . . . . . . . . . . . . . . . . . . . . . . . . . . . . . . . . . . . . . . . Special Melee Weapon 1 | . . . . . 1 . . . . . . . . . . . . . . . . . . . . . . . . . . . . . . . . . . . . Unidentified Prototypes 17 | . . . 3 . . . . . 1 . 1 . 1 1 . . . . . . . . . . . . 1 . 2 . . . 1 . . 2 4 . . . . Parts Lost 76 | . 3 . 2 1 . . . 1 . 2 . 3 3 . . 10 1 . . . . 3 . . . . . 2 . 1 . 3 . 1 8 4 8 5 . 7 8 Power 22 | . 1 . . . . . . . . . . 1 2 . . 4 . . . . . 1 . . . . . . . . . 1 . . 2 2 2 2 . 2 2 Propulsion 3 | . . . . . . . . . . 1 . . . . . 1 1 . . . . . . . . . . . . . . . . . . . . . . . . Utility 43 | . 1 . 1 1 . . . 1 . 1 . 2 . . . 5 . . . . . 2 . . . . . 2 . 1 . 2 . 1 5 1 4 2 . 5 6 Weapon 8 | . 1 . 1 . . . . . . . . . 1 . . . . . . . . . . . . . . . . . . . . . 1 1 2 1 . . . Highest Loss Streak 6 | . 3 . 1 1 . . . 1 . 1 . 2 1 . . 6 1 . . . . 3 . . . . . 1 . 1 . 1 . 1 4 2 2 2 . 2 5 To Critical Strikes . | . . . . . . . . . . . . . . . . . . . . . . . . . . . . . . . . . . . . . . . . . . Average Backups 21 | 1 10 14 19 19 20 20 19 19 19 19 20 19 19 21 22 21 22 23 22 22 21 22 21 22 22 21 22 21 21 20 20 21 22 21 21 22 23 23 22 23 23 Power . | . . . 1 . . . . . . . . . . . 1 . . . . . . . . . 1 1 1 . . . 2 1 1 1 . . . 1 1 . 1 Propulsion 2 | . . . 2 3 3 3 3 4 3 3 2 3 3 2 3 2 1 2 3 2 2 2 2 2 2 2 2 2 2 1 2 1 1 1 1 1 1 1 1 1 1 Utility 10 | . 2 3 5 4 5 5 4 4 4 6 7 7 7 8 9 11 13 13 12 12 11 12 12 12 12 11 12 13 12 11 10 13 15 14 14 11 12 13 13 13 14 Weapon 7 | 1 7 10 10 10 11 11 11 10 10 9 9 8 8 8 7 5 6 6 6 6 6 5 5 5 6 6 6 5 5 5 6 5 5 5 5 5 5 5 5 5 5 Tool/Special . | . . . . . . . . . . . . . . . . . . . . . . . . . . . . . . . . . . . . . . . . . . Unused Backups 111 | . . 2 8 1 . . 2 1 6 3 2 6 . 5 . 5 . 6 2 3 1 4 . . . 3 2 2 5 2 1 5 2 1 . 3 4 4 . 6 14 Power 9 | . . . . . . . . . 1 . . . . 2 . . . . 1 . . . . . . . 1 . . 1 . . 1 . . . . . . 2 . Propulsion 12 | . . . . . . . . . . . 1 . . 2 . . . 1 . 3 . 2 . . . . . . 1 . . . . . . 1 . . . . 1 Utility 59 | . . 1 1 . . . . . 3 3 1 4 . 1 . 4 . 4 1 . . 1 . . . 3 1 2 3 . . 5 . 1 . 1 1 4 . 3 11 Weapon 27 | . . 1 7 1 . . 2 1 2 . . 2 . . . 1 . 1 . . 1 1 . . . . . . 1 1 1 . 1 . . . 2 . . . 1 Tool/Special 4 | . . . . . . . . . . . . . . . . . . . . . . . . . . . . . . . . . . . . 1 1 . . 1 1 Average Slot Usage (%) 93 | . 98 100 99 99 100 100 99 100 99 99 98 99 98 93 92 89 92 91 92 93 93 91 86 93 94 93 94 93 92 93 90 94 94 94 93 87 81 85 80 89 91 Engine 4 | . 13 14 11 11 11 11 8 9 9 9 9 5 7 . . 3 15 13 6 3 . 4 11 2 . . . . . . . . . . . . . . . . . Reactor 6 | . . . . . . . . . . . . . . 13 15 9 . . . 2 6 4 . 8 11 11 11 11 10 10 5 7 9 9 12 11 13 12 12 11 11 Treads 9 | . 27 28 22 21 22 22 18 18 18 18 18 18 15 8 7 7 7 7 6 6 6 6 5 5 5 5 5 5 5 5 4 4 4 4 4 3 3 4 4 4 4 Device 13 | . 9 14 22 22 22 22 26 18 17 20 16 7 7 6 . 12 9 10 12 13 15 15 11 11 11 11 6 15 9 10 14 16 14 18 14 13 11 13 12 19 13 Storage 6 | . 14 14 11 11 11 11 9 9 9 9 9 9 7 7 7 7 7 7 6 6 6 6 5 5 5 5 5 5 5 5 4 4 4 4 4 4 4 5 8 7 6 Processor 8 | . . . . . . . . 9 9 9 9 9 13 15 15 15 15 15 11 6 6 8 11 11 11 11 11 8 9 5 4 6 9 9 8 8 8 8 8 10 12 Hackware 21 | . . . . . . . 8 9 9 6 7 18 16 22 23 10 12 11 21 25 23 20 21 23 23 28 33 26 36 41 38 37 38 33 35 32 26 23 20 23 31 Protection 6 | . 4 . 10 10 11 11 9 9 9 9 10 9 7 . 7 5 7 7 6 6 6 6 5 9 11 5 5 5 4 5 4 4 3 4 3 2 4 8 8 4 4 Energy Cannon 6 | . . . . . . . . 10 17 15 5 . 13 14 15 14 11 9 6 13 8 10 7 9 9 5 6 7 6 8 4 3 4 3 4 5 5 6 8 3 5 Ballistic Gun 3 | . 28 18 15 21 17 22 18 5 . . 9 9 . . . . . . . . . . . . . . . . . . . . . . . . . . . . . Special Weapon 2 | . . . . . . . . . . 2 3 3 1 . . . 2 5 5 . 3 1 2 1 . 4 3 3 3 1 4 4 4 4 3 2 2 1 . 1 2 Peak Build Rating 203 | 7 10 11 20 21 19 19 29 31 34 38 38 37 46 69 65 71 67 70 76 78 79 80 76 93 95 113 114 120 127 137 150 152 153 152 160 168 191 194 191 203 201 Average Rating 98 | 5 8 9 17 18 18 19 26 28 32 35 36 36 43 61 65 67 63 65 73 76 72 77 75 86 89 103 109 117 122 132 143 147 150 151 156 160 184 185 185 195 189 On Entrance 83 | . 7 10 10 18 19 19 19 29 29 34 38 36 36 43 65 65 67 64 63 76 74 79 74 75 90 92 113 114 120 125 135 148 151 151 152 123 168 185 184 191 201 Avg Prop Armor Cover (%) . | . . . . . . . . . . . . . . . . . . . . . . . . . . . . . . . . . . . . . . . . . . Naked Turns . | . . . . . . . . . . . . . . . . . . . . . . . . . . . . . . . . . . . . . . . . . . Heaviest Build 232 | 12 29 31 61 60 59 59 63 69 75 78 115 72 84 132 132 139 127 132 128 135 135 139 126 148 148 148 139 145 142 149 140 141 137 138 151 176 188 188 187 229 232 Greatest Support 80 | 40 40 40 40 40 40 40 40 40 40 40 40 40 40 70 70 70 70 70 70 70 70 75 75 75 75 75 75 70 70 70 70 80 80 80 80 80 80 80 75 80 80 Greatest Overweight (x) 3 | . . . 1 1 1 1 1 1 3 1 2 1 2 2 1 1 1 1 1 1 1 1 1 1 1 1 1 2 2 2 1 1 1 1 1 2 2 2 2 2 2 Average Overweight (x) 1 | . . . . 1 1 1 1 1 1 1 1 1 1 1 1 1 1 1 1 1 1 1 1 1 1 1 1 1 1 1 1 1 1 1 1 1 2 2 2 1 2 Largest Inventory Capacity 27 | 8 15 15 20 20 20 20 20 20 20 20 25 20 20 25 25 25 25 25 25 25 25 25 25 25 25 25 25 25 25 25 25 25 25 25 25 25 27 27 27 27 27 Average Capacity 23 | 7 12 15 19 20 20 20 20 20 20 20 20 20 20 23 25 25 25 25 25 25 25 25 25 25 25 25 25 25 25 25 25 25 25 25 25 25 26 27 27 27 27 Most Carried 27 | 5 15 15 20 20 20 20 20 20 20 20 21 20 20 25 25 25 25 25 25 25 25 25 25 25 25 25 25 25 25 25 25 25 25 25 25 25 27 27 26 27 27 Average Carried 23 | 2 10 14 19 19 20 20 19 19 19 19 20 19 19 23 24 24 24 24 24 24 24 24 24 24 24 24 24 24 24 24 24 24 24 24 24 24 25 26 25 26 26 Final Capacity 27 | 8 15 15 20 20 20 20 20 20 20 20 20 20 20 25 25 25 25 25 25 25 25 25 25 25 25 25 25 25 25 25 25 25 25 25 25 25 27 27 27 27 27 Final Carried 27 | 2 15 15 20 20 20 20 20 20 20 20 20 20 20 25 25 25 25 25 25 25 25 25 25 25 25 25 25 25 25 25 25 25 25 25 23 25 23 26 25 27 25 Class Distribution -------------------- 63% | Botlord-Mutant 19% | Scavenger-Mutant 9% | Bothacker-Mutant 5% | Mutant Dominant Class ---------------- Mutant | -10/Materials Mutant | -10/Mines Scavenger-Mutant | -9/Materials Scavenger-Mutant | -9/Mines Scavenger-Mutant | -9/Exiles Scavenger-Mutant | -8/Mines Scavenger-Mutant | -8/Materials Scavenger-Mutant | -8/Garrison Scavenger-Mutant | -8/Materials Scavenger-Mutant | -8/Garrison Bothacker-Mutant | -8/Materials Bothacker-Mutant | -8/Garrison Bothacker-Mutant | -7/Factory Bothacker-Mutant | -7/Waste Bothacker-Mutant | -7/Factory Botlord-Mutant | -7/Garrison Botlord-Mutant | -7/Factory Botlord-Mutant | -7/Garrison Botlord-Mutant | -6/Factory Botlord-Mutant | -6/Waste Botlord-Mutant | -6/Factory Botlord-Mutant | -6/Garrison Botlord-Mutant | -5/Factory Botlord-Mutant | -5/Waste Botlord-Mutant | -5/Factory Botlord-Mutant | -5/Garrison Botlord-Mutant | -5/Factory Botlord-Mutant | -5/Garrison Botlord-Mutant | -4/Factory Botlord-Mutant | -4/Armory Botlord-Mutant | -3/Research Botlord-Mutant | -3/Garrison Botlord-Mutant | -3/Research Botlord-Mutant | -3/Garrison Botlord-Mutant | -2/Research Botlord-Mutant | -2/Quarantine Botlord-Mutant | -2/Section 7 Scavenger-Mutant | -2/Garrison Scavenger-Mutant | -1/Access Botlord-Mutant | -1/Garrison Botlord-Mutant | -1/Access Resources | -11 -10 -10 -9 -9 -9 -8 -8 -8 -8 -8 -8 -8 -7 -7 -7 -7 -7 -7 -6 -6 -6 -6 -5 -5 -5 -5 -5 -5 -4 -4 -3 -3 -3 -3 -2 -2 -2 -2 -1 -1 -1 ----------- Run | Yrd Mat Min Mat Min Exi Min Mat Gar Mat Gar Mat Gar Fac Was Fac Gar Fac Gar Fac Was Fac Gar Fac Was Fac Gar Fac Gar Fac Arm Res Gar Res Gar Res Qua Sec Gar Acc Gar Acc Matter Collected 13578 | 346 364 87 618 335 40 65 48 329 659 340 246 1016 471 170 20 530 40 542 267 40 58 504 55 205 . 206 54 620 407 663 . 868 244 389 201 418 765 291 15 417 625 Remotely . | . . . . . . . . . . . . . . . . . . . . . . . . . . . . . . . . . . . . . . . . . . Salvage Created 30177 | 204 494 80 1309 316 . 89 202 524 1597 747 390 873 1023 1616 . 1350 115 609 374 246 167 619 114 1632 . . 126 455 290 1060 143 481 589 365 1126 1109 2812 2205 . 2283 2443 Parts 1409 | 19 29 4 87 24 . 13 10 25 90 45 18 68 53 36 . 63 2 32 11 4 11 33 4 29 . . 3 23 11 41 13 28 23 17 43 60 141 72 . 113 111 Haulers Intercepted 18 | . 2 . 4 . . . 1 . 3 . 5 . 2 . . . . . 1 . . . . . . . . . . . . . . . . . . . . . . Recyclers Shooed 22 | . 1 . 5 . . . . . 2 . . . . . . . . . 4 . . . . . . . . . 2 . . . 1 . 4 1 . . . . 2 Parts Field Recycled . | . . . . . . . . . . . . . . . . . . . . . . . . . . . . . . . . . . . . . . . . . . Retrieved Matter . | . . . . . . . . . . . . . . . . . . . . . . . . . . . . . . . . . . . . . . . . . . Parts Self-Destructed . | . . . . . . . . . . . . . . . . . . . . . . . . . . . . . . . . . . . . . . . . . . Prevented . | . . . . . . . . . . . . . . . . . . . . . . . . . . . . . . . . . . . . . . . . . . Parts Restored . | . . . . . . . . . . . . . . . . . . . . . . . . . . . . . . . . . . . . . . . . . . Kills | -11 -10 -10 -9 -9 -9 -8 -8 -8 -8 -8 -8 -8 -7 -7 -7 -7 -7 -7 -6 -6 -6 -6 -5 -5 -5 -5 -5 -5 -4 -4 -3 -3 -3 -3 -2 -2 -2 -2 -1 -1 -1 ------- Run | Yrd Mat Min Mat Min Exi Min Mat Gar Mat Gar Mat Gar Fac Was Fac Gar Fac Gar Fac Was Fac Gar Fac Was Fac Gar Fac Gar Fac Arm Res Gar Res Gar Res Qua Sec Gar Acc Gar Acc Combat Hostiles Destroyed 382 | . 9 1 25 12 . 7 2 14 28 26 2 25 15 6 . 27 2 11 4 . 1 5 1 5 . . 1 7 1 13 2 5 4 4 11 8 33 21 . 21 23 Melee 2 | . . . . . . . . . . . . 2 . . . . . . . . . . . . . . . . . . . . . . . . . . . . . Guns 77 | . 9 1 23 7 . 7 2 4 . . 1 16 . . . . . . . . . . . . . . . . . . . . . . . . . 1 . 6 . Cannons 192 | . . . . . . . . 1 20 16 1 . 13 5 . 24 2 10 4 . . 4 1 5 . . 1 5 1 8 1 5 3 3 6 6 16 10 . 5 16 AOE 48 | . . . 2 5 . . . 7 7 10 . 7 1 . . 2 . 1 . . . 1 . . . . . 2 . . . . . . . . . . . 3 . Classes Destroyed 26 | 2 4 . 5 3 . . 2 . . 1 . . . 2 . 2 . . . . . . . . . . . 1 . . . . . . . 1 2 . . . 1 Worker 15 | . 2 . 2 1 . . . . 1 . . . 2 . . . . . . . . . . . . . . . . . . . . . 1 4 1 . . . 1 Builder 13 | . . . 2 . . . . . 3 . . . 1 . . . . . . . 1 . . . . . . . . . . . . . . 2 3 . . . 1 Tunneler 11 | 5 . 1 . 1 . . . . . . 1 . . . . . . . . . 2 . . . . . . . . . 1 . . . . . . . . . . Hauler 18 | . 2 . 4 . . . 1 . 3 . 5 . 2 . . . . . 1 . . . . . . . . . . . . . . . . . . . . . . Recycler 15 | 1 . . 2 1 . . . . 3 . . . 1 . . . . . . . . . . . . . . . 1 . . . 1 . 1 2 . . . . 2 Mechanic 1 | . . . . . . . 1 . . . . . . . . . . . . . . . . . . . . . . . . . . . . . . . . . . Operator 7 | . . . 3 . . . . . 2 . . . . . . . . . . . 1 . . . . . . . . . . . . . . 1 . . . . . Turret 3 | . . . . . . . . . . . . . . . . . . . . . . . . . . . . . . . . . . . . . . . . . 3 Watcher 11 | . . . 2 . . . . . 3 . . . 2 . . . . . 2 . . . . . . . . . . 2 . . . . . . . . . . . Swarmer 78 | . . . 9 7 . 7 . 3 5 11 . 8 4 . . 10 . 4 . . . 1 . . . . . 4 . . . . 1 . . . 2 2 . . . Cutter 1 | . . . . . . . . . . . . . . . . . . . . . . . . . . . . 1 . . . . . . . . . . . . . Grunt 102 | . 8 1 10 2 . . . 9 12 11 1 7 1 . . 3 . 3 3 . 1 2 2 . . . 2 1 . 3 1 . 2 . 2 . 1 6 . 5 3 Brawler 3 | . . . . 1 . . . . . . . . . . . . . 1 . . . . . . . . . . . . . . . . . . . 1 . . . Duelist 5 | . . . . 1 . . . . 1 . . . . . . . . . . . . . . . . . . . . 1 . . . . 1 . . 1 . . . Protector 1 | . . . . 1 . . . . . . . . . . . . . . . . . . . . . . . . . . . . . . . . . . . . . Sentry 66 | . . . 6 . . . 1 2 7 1 1 3 4 . . 12 1 3 1 . . . . . . . . . . 3 . 1 1 1 1 1 3 6 . 4 3 Demolisher 1 | . . . . . . . . . . . . . . . . . . . . . . . . . . . . . . 1 . . . . . . . . . . . Hunter 41 | . . . . . . . 1 . 3 . . 3 4 . . . . 1 . . . 1 . . . . . 2 . 2 . 1 . . 3 . 8 3 . 4 5 Programmer 80 | . . . . . . . . . . 3 . 5 4 . . . 1 2 . . 1 1 . . . . . 2 1 4 1 5 1 3 6 6 13 3 . 6 12 Heavy 3 | . . . . . . . . . . . . . . . . 1 . . . . . . . . . . . . 1 . . . . . . . 1 . . . . Behemoth 12 | . . . . . . . . . . . . . . . . 1 . . . . . . . . . . . 1 . . . . 1 1 . . 2 1 . 3 2 Compactor 11 | . . . . . . . . . . . . . . 6 . . . . . . . . . 5 . . . . . . . . . . . . . . . . . S7 Guard 1 | . . . . . . . . . . . . . . . . . . . . . . . . . . . . . . . . . . . . . 1 . . . . Executioner 2 | . . . . . . . . . . . . . . . . . . . . . . . . . . . . . . . . . . . . . 2 . . . . Alpha 7 1 | . . . . . . . . . . . . . . . . . . . . . . . . . . . . . . . . . . . . . 1 . . . . Fortress 1 | . . . . . . . . . . . . . . . . . . . . . . . . . . . . . . . . . . . . 1 . . . . . Subdweller 1 | . 1 . . . . . . . . . . . . . . . . . . . . . . . . . . . . . . . . . . . . . . . . Martyr 4 | . . . . . . . . . . . . . . 2 . . . . . . . . . 2 . . . . . . . . . . . . . . . . . Best Kill Streak 9 | 6 4 1 6 6 . 4 1 3 6 9 3 4 4 2 . 5 1 4 2 . 2 1 1 2 . . 1 3 1 2 1 2 2 1 4 6 4 5 . 6 4 Combat Bots Only 9 | . 1 1 6 5 . 4 1 3 5 9 1 4 3 2 . 5 1 4 2 . 1 1 1 2 . . 1 3 1 2 1 2 1 1 2 3 4 5 . 6 4 Max Kills in Single Turn 4 | 1 1 1 2 4 . 2 1 3 4 3 1 4 3 1 . 1 1 1 1 . 1 1 1 1 . . 1 1 1 1 1 1 1 1 1 3 3 1 . 2 1 Gunslinging 1 | . . . 1 . . 1 . . . . . . . . . . . . . . . . . . . . . . . . . . . . . . . . . . . Exploded 4 | . . . 2 3 . . . 3 4 3 . 4 1 . . 1 . 1 . . . 1 . . . . . 1 . . . . . . . . . . . 1 . Melee 1 | . . . . . . . . . . . . 1 . . . . . . . . . . . . . . . . . . . . . . . . . . . . . Uniques/NPCs Destroyed 1 | . . . . . . . . . . . . . . . . . . . . . . . . . . . 1 . . . . . . . . . . . . . . DW-4LL (-5/Factory) Combat | -11 -10 -10 -9 -9 -9 -8 -8 -8 -8 -8 -8 -8 -7 -7 -7 -7 -7 -7 -6 -6 -6 -6 -5 -5 -5 -5 -5 -5 -4 -4 -3 -3 -3 -3 -2 -2 -2 -2 -1 -1 -1 -------- Run | Yrd Mat Min Mat Min Exi Min Mat Gar Mat Gar Mat Gar Fac Was Fac Gar Fac Gar Fac Was Fac Gar Fac Was Fac Gar Fac Gar Fac Arm Res Gar Res Gar Res Qua Sec Gar Acc Gar Acc Hostile Shots Fired 2498 | . 67 14 90 21 2 29 24 34 112 90 19 117 215 . 1 284 33 40 11 . 12 81 4 . . 6 1 29 30 91 18 54 9 27 81 47 199 75 . 224 307 Missed 784 | . 13 1 30 6 2 10 7 15 32 33 6 27 86 . . 92 12 12 5 . 5 31 4 . . . 1 4 9 35 8 12 7 9 30 11 45 23 . 62 99 Intercepted 10 | . . . . . . . . . . . . . . . . . . . . . . . . . . . . . . . . . . . . . . . . . 10 Hits 1714 | . 54 13 60 15 . 19 17 19 80 57 13 90 129 . 1 192 21 28 6 . 7 50 . . . 6 . 25 21 56 10 42 2 18 51 36 154 52 . 162 208 Melee 6 | . . . . 3 . . . . . . . . . . . . . . . . . . . . . . . . . 1 . . . . . . . 2 . . . Projectile 1708 | . 54 13 60 12 . 19 17 19 80 57 13 90 129 . 1 192 21 28 6 . 7 50 . . . 6 . 25 21 55 10 42 2 18 51 36 154 50 . 162 208 AOE 29 | . . . . . . . . . . . . . . . . . . . . . . 3 . . . . . 3 . 9 . 4 . . . . . . . 1 9 Critical Strikes 80 | . 3 3 2 2 . . 2 . 4 2 1 4 1 . . 4 . . . . 1 . . . . . . . 1 4 2 3 1 1 2 3 7 . . 10 17 Actively Blocked 32 | . . . . . . . . . . . . . . . . . . . . . . . . . . . . . . . . 3 . . 1 3 6 . . 9 10 Part Disruptions 3 | . . . . . . . . . . . . . . . . . . . . . . . . . . . . . . . . . . . . 1 1 . . . 1 Damage Taken 29211 | . 787 202 794 265 . 153 203 217 934 574 151 1269 1233 . 15 2323 250 456 113 . 113 741 6 25 . 161 . 585 761 912 166 940 55 338 1546 1296 3811 1252 . 2714 3850 Core 2909 | . 215 10 108 34 . 25 33 18 146 47 26 136 123 . 15 188 9 114 . . 19 56 . . . 21 . 29 65 104 . 74 . 34 375 130 228 47 . 122 358 Absorbed by Shields 4011 | . . . . . . . 76 73 211 215 45 . . . . 33 . 37 . . . 107 . . . . . 38 . 623 . 186 20 120 65 . . . . 446 1716 Reduced by Siege Mode 310 | . . . . . . . . . . . . . . . . 104 . . . . . . . . . . . 27 . . . . . . . 92 21 7 . 35 24 Ignored by Resistances 100 | . . . . . . . . . . . . . . . . . 6 2 . . . . . . . . . . . . . . . . . . 92 . . . . Regen/Repaired (Parts) 6342 | . 190 . . . . . . . 185 . . . . 95 . . . 22 . . . . . 55 13 25 . 63 492 106 53 . . . . . 1518 1024 . 967 1534 Core Remaining (%) 63 | 100 . 10 . . . 58 . . . . . 26 . . . . . 35 . . . 91 . . . . . 95 . 85 . . . 91 . . . 41 . . 70 Volleys Fired 2717 | 19 46 13 97 19 3 11 20 30 98 71 22 69 135 76 . 117 27 81 42 4 56 69 9 75 . 73 7 125 49 119 33 114 37 60 77 113 212 143 . 165 181 Largest 2 | 2 2 2 2 2 1 2 2 2 2 2 2 2 2 2 . 2 2 2 2 2 2 2 2 2 . 2 2 2 2 2 1 1 1 1 1 1 2 1 . 2 2 Hottest 240 | 40 40 40 88 63 23 46 46 112 150 150 150 50 120 120 . 120 120 120 120 120 120 180 120 120 . 120 120 120 120 240 120 120 120 120 120 120 214 120 . 240 240 Shots Fired 3473 | 38 92 26 192 33 3 22 40 52 159 104 37 105 197 105 . 167 36 105 48 7 63 81 13 98 . 74 10 136 65 157 33 111 39 61 77 112 214 143 . 185 233 Gun 676 | 38 92 26 191 24 3 22 40 26 . . 16 78 . . . . . . . . . . . . . . . . . . . . . . . . 4 27 . 89 . Cannon 2331 | . . . . . . . . 22 148 95 19 . 175 101 . 145 30 89 42 7 46 65 10 91 . 66 8 90 49 120 28 65 30 44 60 111 174 109 . 72 220 Launcher 66 | . . . 1 9 . . . 4 11 8 . 2 . . . 5 . 3 . . . 5 . . . . . 3 1 5 . . . . . . . . . 9 . Special 400 | . . . . . . . . . . 1 2 25 22 4 . 17 6 13 6 . 17 11 3 7 . 8 2 43 15 32 5 46 9 17 17 1 36 7 . 15 13 Kinetic 497 | 38 92 26 124 24 3 22 40 26 5 . 16 78 . . . . . . . . . . . . . . . . . . . . . . . . . . . . 3 Thermal 2124 | . . . 49 . . . . 1 137 76 14 . 175 101 . 145 30 89 42 7 46 65 10 91 . 66 8 90 49 112 25 61 30 44 47 100 120 54 . 53 187 Explosive 47 | . . . 1 9 . . . 4 11 8 . 2 . . . . . 3 . . . 5 . . . . . 3 1 . . . . . . . . . . . . Electromagnetic 289 | . . . 18 . . . . 21 6 19 5 . . . . 5 . . . . . . . . . . . . . 13 3 4 . . 13 11 58 55 . 28 30 Slashing 116 | . . . . . . . . . . . . . . . . . . . . . . . . . . . . . . . . . . . . . . 27 . 89 . Robot Hit Streak 46 | 6 23 15 15 7 . 6 19 7 11 19 8 18 10 21 . 12 6 16 14 20 21 11 15 19 . 9 10 10 8 26 26 27 10 14 12 33 38 20 . 39 46 Robot Miss Streak 6 | 2 4 1 4 5 . 3 3 2 4 3 6 2 5 3 . 2 4 3 2 . 1 5 1 2 . 1 1 3 4 3 . 3 2 3 3 2 3 2 . 4 2 Penetration Max 1 | . . . . . . . . . . . . . . . . . . . . . . . . . . . . . . . . . . . . . . 1 . 1 . Secondary Targets 10 | . . . 3 1 . 2 . . . . . 4 . . . . . . . . . . . . . . . . . . . . . . . . . . . . . Max Gunslinging Chain 1 | . . . 1 1 . 1 . . . . . 1 . . . . . . . . . . . . . . . . . . . . . . . . . . . . . Capacitor 469 | . . . . . . . . . . . . . . . . . . . . . . . . . . . . . . . . . . . . 110 162 136 . 61 . Shots Hit Robots 2049 | 25 70 21 128 16 4 14 28 30 80 48 22 71 77 89 . 87 14 46 26 6 29 49 8 84 . 13 6 53 37 89 9 60 22 27 46 78 158 102 . 136 141 Core Hits 798 | 9 27 6 64 18 . 8 9 26 71 40 10 40 27 24 . 40 3 23 10 2 7 22 3 19 . 2 3 17 8 26 3 11 6 4 11 31 41 37 . 56 34 Critical Kills 21 | . . . . . . . . . 1 . . . 1 1 . . . 1 . . . . . . . . . . . 1 . . 1 1 3 1 7 . . . 3 Critical Parts Destroyed . | . . . . . . . . . . . . . . . . . . . . . . . . . . . . . . . . . . . . . . . . . . Critical Strikes 32 | . . . 3 . . . . . 1 . . . 1 1 . . . 1 . . . . . . . . . . . 1 . . 1 1 3 1 8 5 . 1 4 Burn 3 | . . . 3 . . . . . . . . . . . . . . . . . . . . . . . . . . . . . . . . . . . . . . Meltdown 21 | . . . . . . . . . 1 . . . 1 1 . . . 1 . . . . . . . . . . . 1 . . 1 1 3 1 7 . . . 3 Corrupt 5 | . . . . . . . . . . . . . . . . . . . . . . . . . . . . . . . . . . . . . 1 3 . . 1 Sever 3 | . . . . . . . . . . . . . . . . . . . . . . . . . . . . . . . . . . . . . . 2 . 1 . Melee Attacks 46 | . . . . 3 4 . . 6 . . 2 30 1 . . . . . . . . . . . . . . . . . . . . . . . . . . . . Impact . | . . . . . . . . . . . . . . . . . . . . . . . . . . . . . . . . . . . . . . . . . . Slashing 42 | . . . . 3 . . . 6 . . 2 30 1 . . . . . . . . . . . . . . . . . . . . . . . . . . . . Piercing . | . . . . . . . . . . . . . . . . . . . . . . . . . . . . . . . . . . . . . . . . . . Sneak Attacks 7 | . . . . 1 4 . . . . . 1 1 . . . . . . . . . . . . . . . . . . . . . . . . . . . . . Combat Hostiles . | . . . . . . . . . . . . . . . . . . . . . . . . . . . . . . . . . . . . . . . . . . Follow-up Attacks . | . . . . . . . . . . . . . . . . . . . . . . . . . . . . . . . . . . . . . . . . . . Damage Inflicted 64631 | 226 754 259 2215 908 . 246 390 1094 2889 2391 593 1658 2180 2569 . 2923 308 1543 732 188 550 1564 159 2505 . 213 122 1199 843 2796 515 1395 692 704 1878 3266 5548 3798 . 6382 6436 Guns 8800 | 226 728 237 2014 188 . 229 374 247 . . 109 927 . . . . . . . . . . . . . . . . . . . . . . . . 33 793 . 2695 . Cannons 45215 | . . . . . . . . 292 1817 1183 365 . 1896 2569 . 2356 290 1250 698 188 527 1283 159 2505 . 213 112 860 818 2546 242 1395 692 704 1819 2495 5026 2925 . 1926 6064 Explosions 9460 | . . . 175 607 . . . 555 978 1208 . 561 276 . . 567 . 293 . . . 272 . . . . . 339 . 250 171 . . . . 730 385 66 . 1761 266 Melee 370 | . . . . 81 . . . . . . 119 170 . . . . . . . . . . . . . . . . . . . . . . . . . . . . . Ramming 786 | . 26 22 26 32 . 17 16 . 94 . . . 8 . . . 18 . 34 . 23 9 . . . . 10 . 25 . 102 . . . 59 41 104 14 . . 106 Kinetic 4748 | 226 728 237 1294 188 . 229 374 247 57 . 109 927 . . . . . . . . . . . . . . . . . . . . . . . . . . . . 132 Thermal 40700 | . . . 570 66 . . . 182 1680 986 277 . 2172 2569 . 2557 290 1250 698 188 527 1283 159 2505 . 213 112 860 818 2279 278 1281 692 704 1439 2211 3522 1218 . 2001 5113 Explosive 5780 | . . . 100 541 . . . 373 978 1208 . 561 . . . . . 293 . . . 272 . . . . . 339 . . . . . . . 730 385 . . . . Electromagnetic 8759 | . . . 225 . . . . 292 80 197 88 . . . . 366 . . . . . . . . . . . . . 517 135 114 . . 380 284 1537 1773 . 1686 1085 Impact . | . . . . . . . . . . . . . . . . . . . . . . . . . . . . . . . . . . . . . . . . . . Slashing 3858 | . . . . 81 . . . . . . 119 170 . . . . . . . . . . . . . . . . . . . . . . . . . 793 . 2695 . Piercing . | . . . . . . . . . . . . . . . . . . . . . . . . . . . . . . . . . . . . . . . . . . Highest Corruption 35 | . . . . . . . . . . 2 2 8 1 1 1 1 5 6 . . . . . . . . . . 3 6 . 5 5 5 6 10 11 7 . 5 35 Average Corruption 6 | . . . . . . . . . . 1 2 6 1 1 1 1 4 5 . . . . . . . . . . 2 3 . 4 5 5 3 8 4 6 . 4 18 Corruption Purged 19 | . . . . . . . . . . . . . . . . 1 . . . . . . . . . . . . 3 . . . . . . . 10 . . . 5 Corruption Blocked . | . . . . . . . . . . . . . . . . . . . . . . . . . . . . . . . . . . . . . . . . . . Effects 718 | . . . . . . . . . . 9 6 51 7 9 3 19 4 55 . . . . . . . . . . 8 33 . 42 22 38 6 61 76 66 . 49 154 Message Errors 165 | . . . . . . . . . . 2 2 13 4 4 . 7 1 12 . . . . . . . . . . 2 5 . 5 3 4 1 15 17 16 . 14 38 Matter Fused 178 | . . . . . . . . . . 2 1 14 1 . . . 1 20 . . . . . . . . . . 1 10 . 11 9 13 3 17 13 16 . 7 39 Heat Flow Errors 73 | . . . . . . . . . . . . 6 1 1 1 . . 3 . . . . . . . . . . 1 7 . 7 1 4 . 4 10 9 . 4 14 Energy Discharges 90 | . . . . . . . . . . 1 1 7 . 3 1 1 . 5 . . . . . . . . . . . 7 . 8 2 6 . 11 9 7 . 6 15 Parts Rejected 8 | . . . . . . . . . . . . . . 1 . . . . . . . . . . . . . . . . . . . . . 1 1 . . 1 4 Parts Fused 12 | . . . . . . . . . . . . 1 . . . 3 . 1 . . . . . . . . . . 1 . . . . 1 . 1 1 1 . . 2 Data Loss (minor) 85 | . . . . . . . . . . 2 . 8 1 . . 3 1 4 . . . . . . . . . . 1 2 . 5 4 6 2 4 14 8 . 8 12 Data Loss (major) 27 | . . . . . . . . . . 1 1 . . . 1 1 1 5 . . . . . . . . . . 1 . . 2 1 1 . 2 2 3 . 1 4 Misfires 29 | . . . . . . . . . . 1 . 1 . . . . . 2 . . . . . . . . . . 1 1 . . 2 2 . 2 3 3 . 3 8 Alerts 18 | . . . . . . . . . . . 1 1 . . . 2 . 3 . . . . . . . . . . . 1 . 1 . . . 1 4 . . 1 3 Misdirections 5 | . . . . . . . . . . . . . . . . . . . . . . . . . . . . . . . . . . . . . . . . . 5 Weapon Failures 28 | . . . . . . . . . . . . . . . . 2 . . . . . . . . . . . . . . . 3 . 1 . 3 2 3 . 4 10 Overload Shots 4 | . . . . . . . . . . . . . . . . . . . . . . 2 . . . . . 1 . 1 . . . . . . . . . . . Effects 1 | . . . . . . . . . . . . . . . . . . . . . . 1 . . . . . . . . . . . . . . . . . . . Heat Surge 1 | . . . . . . . . . . . . . . . . . . . . . . 1 . . . . . . . . . . . . . . . . . . . Overflow Damage 1686 | . . . 4 78 . . . 24 8 62 3 41 129 . . 53 51 9 19 . 39 4 . . . 12 . 39 37 113 18 126 56 51 165 119 220 23 . 24 159 Projectiles 1167 | . . . . . . . . . . 24 3 . 29 . . 53 51 9 19 . 39 4 . . . 12 . . 37 113 . 126 56 51 165 34 166 18 . 19 139 Explosions 477 | . . . 4 37 . . . 24 8 38 . 41 100 . . . . . . . . . . . . . . 39 . . 18 . . . . 84 54 5 . 5 20 Melee 42 | . . . . 41 . . . . . . . . . . . . . . . . . . . . . . . . . . . . . . . 1 . . . . . Knockbacks 15 | . . . 2 . . 1 . . 5 . . . . . . . 1 . . . . . . . . . 1 . . . 2 . . . . . 1 . . . 2 Impact 10 | . . . 2 . . 1 . . 1 . . . . . . . 1 . . . . . . . . . 1 . . . 2 . . . . . 1 . . . 1 Kinetic 4 | . . . . . . . . . 3 . . . . . . . . . . . . . . . . . . . . . . . . . . . . . . . 1 Secondary 1 | . . . . . . . . . 1 . . . . . . . . . . . . . . . . . . . . . . . . . . . . . . . . Self-Inflicted Damage 545 | . . . 14 48 . . . 14 . 26 . . . . . 180 . . . . . 12 . . . . . . . . 16 . . . . . 108 . . 16 111 Shots 18 | . . . 1 2 . . . 1 . 2 . . . . . 7 . . . . . 1 . . . . . . . . 1 . . . . . 1 . . 1 1 Rammed 89 | . 8 3 7 4 . 2 3 . 13 . . . 3 . . . 5 . 6 . 2 1 . . . . 1 . 3 . 5 . . . 7 5 5 1 . . 5 Targets Rammed 93 | . 9 3 9 4 . 2 3 . 13 . . . 3 . . . 5 . 6 . 2 1 . . . . 1 . 3 . 6 . . . 7 5 5 1 . . 5 Kicked . | . . . . . . . . . . . . . . . . . . . . . . . . . . . . . . . . . . . . . . . . . . Crushed 4 | . 1 . 2 . . . . . . . . . . . . . . . . . . . . . . . . . . . 1 . . . . . . . . . . Highest Temperature 334 | . 25 13 18 . . . . 24 310 255 254 186 197 179 154 269 259 201 21 6 42 305 36 39 . 24 2 16 251 279 156 334 201 255 264 235 204 191 . 242 254 Average Temperature 72 | . 6 13 5 . . . . 6 66 78 71 39 40 60 78 50 70 50 4 3 12 46 16 12 . 6 1 3 65 73 53 101 72 79 88 93 50 49 . 90 110 Received Heat Transfer 3891 | . 426 168 303 18 . . 44 96 422 160 62 207 243 . 9 426 18 27 54 . 27 71 . 9 . 36 . 33 63 90 49 27 . 24 72 117 174 135 . 119 162 Thermoelectric Energy+ 1027 | . . . . . . . . . . . . . . . . . . . . . . . . . . . . . . . . . . . . . 29 . . 155 843 Effects 13 | . . . . . . . . . 4 1 . . . . . . . . . . . . . . . . . . . . . . . . 4 . . . . . 4 Energy Bleed 5 | . . . . . . . . . 1 1 . . . . . . . . . . . . . . . . . . . . . . . . . . . . . . 3 Interference 8 | . . . . . . . . . 3 . . . . . . . . . . . . . . . . . . . . . . . . . 4 . . . . . 1 Siege Activations 14 | . . . . . . . . . . . . . . . . 4 . . . . . . . . . . . 1 . . . . . . . 2 3 1 . 2 1 Total Turns 254 | . . . . . . . . . . . . . . . . 63 . . . . . . . . . . . 22 . . . . . . . 62 12 28 . 50 17 Longest Duration 46 | . . . . . . . . . . . . . . . . 25 . . . . . . . . . . . 22 . . . . . . . 46 5 28 . 31 17 Martial Activations . | . . . . . . . . . . . . . . . . . . . . . . . . . . . . . . . . . . . . . . . . . . Shielding Activations . | . . . . . . . . . . . . . . . . . . . . . . . . . . . . . . . . . . . . . . . . . . Robots Disrupted 1 | . . . . . . . . . . . . . . . . . . . . . . . . . . . . . . . . . . . . . 1 . . . . Combat Hostiles 1 | . . . . . . . . . . . . . . . . . . . . . . . . . . . . . . . . . . . . . 1 . . . . Robots Corrupted 43 | . . . . . . . . 2 . . . . . . . 1 . . . . . . . . . . . . . 3 1 . . . 2 2 10 11 . 6 5 Combat Hostiles 40 | . . . . . . . . 2 . . . . . . . 1 . . . . . . . . . . . . . 3 1 . . . 2 1 10 10 . 6 4 Parts Fried 52 | . . . . . . . . 2 1 1 . . . . . . . . . . . . . . . . . . . 2 . . . . 3 3 8 17 . 7 8 Impact Corruptions 1 | . . . . . . . . . . . . . . . . . . . . . . . . . . . . . . . . . . . . 1 . . . . . Robots Melted 25 | . . . . . . . . . 1 . . . 1 1 . . . 1 . . 1 . . . . . . . . 2 . . 1 1 3 1 7 . . 1 4 Combat Hostiles 23 | . . . . . . . . . 1 . . . 1 1 . . . . . . 1 . . . . . . . . 2 . . 1 1 3 1 7 . . 1 3 Parts Melted 117 | . . . 4 . . . . . 1 . . 2 10 . . 8 2 2 3 . 2 . . 1 . . 1 1 . 9 . . 4 1 14 1 28 5 . 3 15 Heat Transferred 42466 | . . . 1556 100 . . . 200 2442 1332 407 . 2871 3681 . 3382 296 1443 777 222 555 1291 185 3182 . 259 148 925 888 2108 224 886 592 555 1110 1893 2996 938 . 1414 3608 Parts Sabotaged 1 | . . . . . . . . . . . . . . . . . . . . . . . . . . . . . . . . . . . . . . 1 . . . Parts Stolen . | . . . . . . . . . . . . . . . . . . . . . . . . . . . . . . . . . . . . . . . . . . Parts Stripped . | . . . . . . . . . . . . . . . . . . . . . . . . . . . . . . . . . . . . . . . . . . Power Chain Reactions 10 | . . . 1 . . . . 2 . . . . . . . 2 . . . . . . . . . . . . . . 1 . . . . . . 1 . 2 1 Alert | -11 -10 -10 -9 -9 -9 -8 -8 -8 -8 -8 -8 -8 -7 -7 -7 -7 -7 -7 -6 -6 -6 -6 -5 -5 -5 -5 -5 -5 -4 -4 -3 -3 -3 -3 -2 -2 -2 -2 -1 -1 -1 ------- Run | Yrd Mat Min Mat Min Exi Min Mat Gar Mat Gar Mat Gar Fac Was Fac Gar Fac Gar Fac Was Fac Gar Fac Was Fac Gar Fac Gar Fac Arm Res Gar Res Gar Res Qua Sec Gar Acc Gar Acc Maximum Alert Level 4 | . . . 1 1 . . . 1 1 4 2 3 2 . 1 3 2 3 2 . . 1 . . . 2 1 3 4 2 1 2 1 3 2 2 2 4 3 4 3 Low Security (%) 44 | 100 100 100 38 95 . 100 100 41 66 10 . . 79 100 92 7 47 17 35 100 100 66 100 100 100 20 43 5 . . 85 55 26 . 22 46 78 . . . 46 Level 1 22 | . . . 61 4 . . . 58 33 3 91 16 15 . 7 19 29 6 51 . . 33 . . . 18 56 28 1 41 14 22 73 9 62 44 17 11 . . 36 Level 2 17 | . . . . . . . . . . 29 8 25 5 . . 29 23 61 12 . . . . . . 60 . 30 31 58 . 21 . 53 15 9 3 32 77 22 8 Level 3 12 | . . . . . . . . . . 36 . 57 . . . 43 . 14 . . . . . . . . . 35 36 . . . . 36 . . . 46 22 61 8 Level 4 2 | . . . . . . . . . . 19 . . . . . . . . . . . . . . . . . . 29 . . . . . . . . 9 . 14 . Level 5 . | . . . . . . . . . . . . . . . . . . . . . . . . . . . . . . . . . . . . . . . . . . High Security . | . . . . . . . . . . . . . . . . . . . . . . . . . . . . . . . . . . . . . . . . . . Max Security . | . . . . . . . . . . . . . . . . . . . . . . . . . . . . . . . . . . . . . . . . . . Peak Influence 1449 | 10 85 35 388 225 . 120 40 368 371 1190 579 1096 575 87 220 977 512 890 466 21 41 364 192 32 23 659 345 835 1449 691 244 580 394 875 492 421 435 1217 729 1202 880 Initial 729 | . . 9 . 148 . . 1 9 179 133 579 219 575 87 . 148 512 11 466 21 . 7 191 32 . 2 345 109 438 691 244 . 326 280 492 135 99 326 729 468 720 Average 328 | 1 24 2 223 95 . 28 5 226 151 781 348 698 98 6 20 561 208 478 242 1 4 166 153 1 4 400 214 511 870 431 98 209 256 639 274 205 151 739 661 873 243 Influence Increases 26511 | 30 304 50 1011 408 . 166 112 369 1075 1077 284 1047 722 3 314 1269 105 979 193 . 151 527 61 6 23 977 198 1106 2268 1562 197 829 880 1005 793 855 1409 1211 46 1204 1685 Destroy 0b10 Robot/C 11080 | . 160 20 600 220 . 140 40 280 560 540 140 580 300 . 120 570 30 420 90 . 60 150 45 . . 300 75 315 720 660 60 255 315 315 345 270 750 510 15 450 660 Destroy 0b10 Robot/NC 634 | 30 20 5 75 20 . . 10 . 70 . 30 . 32 . 8 . . . 12 . 16 16 . . . . . . 72 16 8 4 12 . 52 40 28 4 . 6 48 Destroy Leader 1860 | . 44 10 162 30 . 20 22 20 192 40 60 38 104 . 26 16 16 48 38 . 16 16 . . . 32 . 32 136 142 16 16 74 32 44 32 136 40 8 58 144 Allied During Kill 4733 | . . . 26 1 . . . . . 1 6 17 12 . 154 98 . 72 17 . 4 15 12 . . 332 75 223 855 511 6 157 401 309 226 222 189 192 23 274 303 Successful Hack 384 | . 5 . . . . 6 24 . 34 12 . 14 20 . 6 6 23 12 11 . 11 23 . . . 12 17 . 51 17 37 . . 22 12 . 9 . . . . Select Force Hacks 182 | . 30 . 60 . . . . . . . . . . . . . 23 . . . 23 . . . 23 . 23 . . . . . . . . . . . . . . Disable Machine 1002 | . . . 15 30 . . 15 . 45 15 15 . 132 . . 36 . . 12 . . . . . . . . 24 60 96 12 48 48 . 24 84 156 24 . 21 90 Anti-Garrison Action 3431 | . . . . . . . . . . 200 . 338 . . . 453 . 378 . . . 227 . . . 227 . 378 . . . 265 . 265 . . . 340 . 270 90 Destroy Structure 2464 | . . . 13 62 . . 1 39 114 89 3 48 86 3 . 42 13 37 13 . 21 68 4 6 . 74 8 134 362 108 58 72 30 50 78 207 117 77 . 113 314 Partial Spotted 60 | . . . 15 . . . . . . . . . . . . . . 12 . . . . . . . . . . 12 . . . . . . . 12 . . . 9 Lose Combat Pursuer 681 | . 45 15 45 45 . . . 30 60 180 30 12 36 . . 48 . . . . . 12 . . . . . . . 12 . 12 . 12 12 . 12 24 . 12 27 Influence Decreases 26024 | 30 279 75 630 748 41 160 104 15 1238 92 1137 288 1569 252 102 504 1065 106 1022 61 140 174 333 98 20 321 700 428 1691 2507 664 249 1086 504 1426 919 1152 429 678 587 2400 Entered New Map 7026 | . . 16 . 233 41 . 5 5 189 72 611 118 521 162 . 64 465 6 424 40 . 4 173 60 . 1 314 48 397 721 223 . 254 94 383 107 79 109 488 117 482 Time Decay 9090 | 30 279 59 555 485 . 160 99 . 589 . 206 . 588 90 40 . 298 . 498 21 140 . 140 38 20 . 326 . 634 601 380 . 362 . 368 566 640 . 130 . 748 Lost Part 685 | . . . 20 10 . . . 10 . 20 . 30 27 . . 100 2 . . . . 30 . . . . . 20 . 10 . 10 . 10 80 36 70 50 . 70 80 Lost Ally 6073 | . . . 55 20 . . . . 10 . 20 140 58 . 62 340 25 100 100 . . 140 20 . . 320 60 360 360 750 61 239 320 400 320 60 363 270 60 400 640 Purge Threat 3150 | . . . . . . . . . 450 . 300 . 375 . . . 275 . . . . . . . . . . . 300 425 . . 150 . 275 150 . . . . 450 Squads Dispatched 119 | . 2 . 5 1 . . 1 . 6 . 3 . 9 . 3 . 3 . 2 . 4 . . . 1 . 3 . 12 8 2 . 8 . 6 6 17 . . . 17 Investigation 18 | . 2 . 3 . . . . . 3 . . . 2 . . . 1 . 1 . 1 . . . 1 . 1 . 1 . . . . . . . 2 . . . . Extermination 40 | . . . . . . . . . . . . . 4 . 1 . 1 . 1 . 2 . . . . . 1 . 4 4 2 . 1 . 2 4 6 . . . 7 Reinforcement 43 | . . . 2 . . . 1 . 3 . . . 3 . 1 . 1 . . . 1 . . . . . 1 . 3 4 . . 3 . 4 2 8 . . . 6 Assault 10 | . . . . 1 . . . . . . . . . . . . . . . . . . . . . . . . 4 . . . 2 . . . . . . . 3 Garrison 8 | . . . . . . . . . . . 3 . . . 1 . . . . . . . . . . . . . . . . . 2 . . . 1 . . . 1 Intercept . | . . . . . . . . . . . . . . . . . . . . . . . . . . . . . . . . . . . . . . . . . . Searches Triggered . | . . . . . . . . . . . . . . . . . . . . . . . . . . . . . . . . . . . . . . . . . . Unchained Authorized 3 | . . . . . . . . . . . . . . . . . . . . . . . . . . . 1 . . . . . . . 1 . . . . . 1 Construction Impeded 7 | . . . . . . . . . 2 . . . 1 . . . . . . . . . . . . . . . 1 . . . 2 . . . . . . . 1 Haulers Reinforced 5 | . . . . . . . . . . . . . 1 . . . . . . . . . . . . . . . 1 . . . . . 2 . . . . . 1 Active Scanning Responses . | . . . . . . . . . . . . . . . . . . . . . . . . . . . . . . . . . . . . . . . . . . Cargo Convoy Interrupts 1 | . . . . . . . . . . . . . 1 . . . . . . . . . . . . . . . . . . . . . . . . . . . . Stealth | -11 -10 -10 -9 -9 -9 -8 -8 -8 -8 -8 -8 -8 -7 -7 -7 -7 -7 -7 -6 -6 -6 -6 -5 -5 -5 -5 -5 -5 -4 -4 -3 -3 -3 -3 -2 -2 -2 -2 -1 -1 -1 --------- Run | Yrd Mat Min Mat Min Exi Min Mat Gar Mat Gar Mat Gar Fac Was Fac Gar Fac Gar Fac Was Fac Gar Fac Was Fac Gar Fac Gar Fac Arm Res Gar Res Gar Res Qua Sec Gar Acc Gar Acc Distress Signals 41 | . 4 . 4 . . . 1 . 4 . 2 . 3 . . 1 . . . . . . . . . . . . 2 7 . . 2 . 2 1 1 . . . 7 Communications Jammed 1130 | . . . . . . . . . . . . . . . . 43 . . 9 . . 4 . . . . . . 188 97 . . 2 . 253 147 340 . . . 47 Distress Signals 1121 | . . . . . . . . . . . . . . . . 43 . . 9 . . 4 . . . . . . 185 97 . . . . 252 147 337 . . . 47 Times Spotted 1016 | . 13 2 47 13 5 7 4 16 52 28 9 39 38 6 8 48 6 27 12 . 9 17 6 5 . 33 5 29 46 61 7 34 31 29 43 21 71 37 1 39 112 Peak Tracking Total 18 | . 3 2 8 5 9 4 2 4 5 6 4 8 6 1 4 9 2 6 2 . 2 7 3 2 . 6 2 8 5 3 1 8 5 4 9 3 5 10 1 11 18 Tactical Retreats 44 | . 3 1 2 1 . . . 2 4 5 1 1 2 . . 2 . . . . . 1 . . . . . . . 1 . 1 . 1 1 . 1 1 . 1 12 Traps | -11 -10 -10 -9 -9 -9 -8 -8 -8 -8 -8 -8 -8 -7 -7 -7 -7 -7 -7 -6 -6 -6 -6 -5 -5 -5 -5 -5 -5 -4 -4 -3 -3 -3 -3 -2 -2 -2 -2 -1 -1 -1 ------- Run | Yrd Mat Min Mat Min Exi Min Mat Gar Mat Gar Mat Gar Fac Was Fac Gar Fac Gar Fac Was Fac Gar Fac Was Fac Gar Fac Gar Fac Arm Res Gar Res Gar Res Qua Sec Gar Acc Gar Acc Traps Triggered 107 | . 3 . 1 . . . 1 4 2 2 . 11 5 . . 11 3 9 1 . . 3 1 . . 8 . 9 2 . . 5 1 5 1 2 . 10 1 6 . Indirectly 2 | . . . . . . . . . . . . . . . . 2 . . . . . . . . . . . . . . . . . . . . . . . . . Trap Hack Attempts . | . . . . . . . . . . . . . . . . . . . . . . . . . . . . . . . . . . . . . . . . . . Triggered . | . . . . . . . . . . . . . . . . . . . . . . . . . . . . . . . . . . . . . . . . . . Disarmed . | . . . . . . . . . . . . . . . . . . . . . . . . . . . . . . . . . . . . . . . . . . Reprogrammed . | . . . . . . . . . . . . . . . . . . . . . . . . . . . . . . . . . . . . . . . . . . Reused . | . . . . . . . . . . . . . . . . . . . . . . . . . . . . . . . . . . . . . . . . . . Traps Extracted . | . . . . . . . . . . . . . . . . . . . . . . . . . . . . . . . . . . . . . . . . . . Installed . | . . . . . . . . . . . . . . . . . . . . . . . . . . . . . . . . . . . . . . . . . . Triggered . | . . . . . . . . . . . . . . . . . . . . . . . . . . . . . . . . . . . . . . . . . . Machines | -11 -10 -10 -9 -9 -9 -8 -8 -8 -8 -8 -8 -8 -7 -7 -7 -7 -7 -7 -6 -6 -6 -6 -5 -5 -5 -5 -5 -5 -4 -4 -3 -3 -3 -3 -2 -2 -2 -2 -1 -1 -1 ---------- Run | Yrd Mat Min Mat Min Exi Min Mat Gar Mat Gar Mat Gar Fac Was Fac Gar Fac Gar Fac Was Fac Gar Fac Was Fac Gar Fac Gar Fac Arm Res Gar Res Gar Res Qua Sec Gar Acc Gar Acc Machines Disabled 134 | . . . 1 3 1 . 1 1 3 3 1 4 11 . . 7 . 5 1 . . 3 . . . 3 . 7 5 8 1 9 4 5 2 7 14 8 . 5 11 Max in Single Turn 8 | . . . 1 2 1 . 1 1 1 1 1 1 8 . . 1 . 1 1 . . 1 . . . 1 . 1 1 1 1 1 . 1 1 2 2 1 . 1 1 Garrison Access 5 | . . . . . . . . . . . . . 1 . . . . . . . . . . . . . . . 2 . . . 1 . . . . . . . 1 Garrison Relay 46 | . . . . . . . . . . 2 . 4 . . . 4 . 5 . . . 3 . . . 4 . 5 . . . 6 . 5 . . . 4 . 4 . Machines Repaired . | . . . . . . . . . . . . . . . . . . . . . . . . . . . . . . . . . . . . . . . . . . Machines Dismantled . | . . . . . . . . . . . . . . . . . . . . . . . . . . . . . . . . . . . . . . . . . . Machines Sabotaged . | . . . . . . . . . . . . . . . . . . . . . . . . . . . . . . . . . . . . . . . . . . Overloaded Fab Kills . | . . . . . . . . . . . . . . . . . . . . . . . . . . . . . . . . . . . . . . . . . . Hacking | -11 -10 -10 -9 -9 -9 -8 -8 -8 -8 -8 -8 -8 -7 -7 -7 -7 -7 -7 -6 -6 -6 -6 -5 -5 -5 -5 -5 -5 -4 -4 -3 -3 -3 -3 -2 -2 -2 -2 -1 -1 -1 --------- Run | Yrd Mat Min Mat Min Exi Min Mat Gar Mat Gar Mat Gar Fac Was Fac Gar Fac Gar Fac Was Fac Gar Fac Was Fac Gar Fac Gar Fac Arm Res Gar Res Gar Res Qua Sec Gar Acc Gar Acc Machines Accessed 139 | . 5 . 7 1 2 1 4 2 15 1 2 3 8 . 2 3 5 2 6 . 3 2 . . 1 2 4 2 14 9 7 1 3 1 4 5 8 2 1 1 . Terminals 86 | . 3 . 4 . . 1 3 2 11 1 1 3 3 . 1 3 2 2 4 . 1 2 . . . 2 2 2 7 5 3 1 1 1 3 3 6 2 . 1 . Fabricators 11 | . . . . . . . . . . . . . . . . . 1 . . . . . . . . . 1 . 4 3 1 . . . 1 . . . . . . Repair Stations 10 | . 1 . . . . . . . 2 . . . 2 . . . . . . . 1 . . . . . . . 1 . 1 . 1 . . 1 . . . . . Recycling Units 6 | . 1 . 2 . . . . . . . . . 1 . . . . . 1 . . . . . . . . . . 1 . . . . . . . . . . . Scanalyzers 9 | . . . 1 . . . . . 1 . . . 1 . . . 1 . 1 . . . . . . . . . 1 . 1 . . . . 1 1 . . . . Garrison Access 14 | . . . . . . . 1 . 1 . 1 . 1 . 1 . 1 . . . 1 . . . 1 . 1 . 1 . 1 . 1 . . . 1 . 1 . . Total Hacks 330 | . 16 . 16 1 2 2 8 3 55 2 6 6 15 . 3 11 13 4 15 . 10 3 . . 2 5 8 5 35 13 17 1 7 3 7 14 14 4 3 1 . Successful 140 | . 6 . 8 1 2 1 4 2 30 1 3 1 5 . 2 1 8 1 5 . 5 2 . . 2 1 5 . 14 3 6 . 4 2 2 7 4 . 1 1 . Failed 187 | . 10 . 7 . . 1 4 1 24 1 3 5 10 . 1 10 5 3 9 . 5 1 . . . 4 3 5 21 10 11 1 3 1 5 7 10 4 2 . . Catastrophic 57 | . . . 1 . . . 1 . 3 1 1 1 5 . . 5 3 1 2 . 2 1 . . . 2 1 2 5 4 3 1 1 . 3 2 4 1 1 . . Database Lockouts 3 | . . . 1 . . . . . 1 . . . . . . . . . 1 . . . . . . . . . . . . . . . . . . . . . . Manual 114 | . 9 . 9 . 1 2 3 . 22 1 5 1 5 . . . 5 . . . 3 . . . 1 1 4 . 13 5 5 . 6 1 2 6 2 . 2 . . Terminals 203 | . 11 . 8 . . 2 7 3 38 2 5 6 4 . 2 11 6 4 9 . 4 3 . . . 5 3 5 15 8 9 1 4 3 6 5 9 4 . 1 . Fabricators 19 | . . . . . . . . . . . . . . . . . 3 . . . . . . . . . 3 . 7 3 2 . . . 1 . . . . . . Repair Stations 35 | . 4 . . . . . . . 13 . . . 6 . . . . . . . 2 . . . . . . . 3 . 3 . 2 . . 2 . . . . . Recycling Units 9 | . 1 . 3 . . . . . . . . . 2 . . . . . 1 . . . . . . . . . . 2 . . . . . . . . . . . Scanalyzers 38 | . . . 5 . . . . . 3 . . . 1 . . . 2 . 5 . . . . . . . . . 9 . 2 . . . . 7 4 . . . . Garrison Access 23 | . . . . . . . 1 . 1 . 1 . 2 . 1 . 2 . . . 4 . . . 2 . 2 . 1 . 1 . 1 . . . 1 . 3 . . Terminal Hacks 51 | . . . 2 1 2 1 2 2 11 1 2 1 1 . 1 1 2 1 2 . . 2 . . . 1 . . 3 3 2 . 1 1 2 1 1 . . 1 . Record 2 | . . . . . 1 . . . 1 . . . . . . . . . . . . . . . . . . . . . . . . . . . . . . . . Part Schematic 2 | . . . . . . . . . . . . . . . 1 . . . 1 . . . . . . . . . . . . . . . . . . . . . . Robot Analysis 3 | . . . 1 . . 1 . . 1 . . . . . . . . . . . . . . . . . . . . . . . . . . . . . . . . Prototype ID Bank 4 | . . . 1 . . . . . 1 . . . 1 . . . . . . . . . . . . . . . 1 . . . . . . . . . . . . Open Door 5 | . . . . 1 . . . . . . . . . . . 1 . . . . . . . . . . . . . 1 . . . . 1 . 1 . . . . Branch Access Points 3 | . . . . . . . . . 1 . . . . . . . . . . . . . . . . . . . . . 1 . . . 1 . . . . . . Emergency Access Points 4 | . . . . . . . . . . 1 . 1 . . . . . . . . . . . . . . . . . . . . . 1 . . . . . 1 . Terminal Index 2 | . . . . . . . 1 . 1 . . . . . . . . . . . . . . . . . . . . . . . . . . . . . . . . Scanalyzer Index 1 | . . . . . . . . . . . . . . . . . 1 . . . . . . . . . . . . . . . . . . . . . . . . Unreport Threat 10 | . . . . . . . . . 3 . 2 . . . . . . . . . . . . . . . . . 2 1 . . 1 . . 1 . . . . . Locate Traps 3 | . . . . . . . . . . . . . . . . . 1 . 1 . . . . . . . . . . 1 . . . . . . . . . . . Patrol Status 1 | . . . . . . . . . 1 . . . . . . . . . . . . . . . . . . . . . . . . . . . . . . . . Hauler Manifests 2 | . . . . . . . 1 . 1 . . . . . . . . . . . . . . . . . . . . . . . . . . . . . . . . Zone Layout 2 | . . . . . . . . . 1 . . . . . . . . . . . . . . . . . . . . . 1 . . . . . . . . . . Garrison Registry 2 | . . . . . . . . 1 . . . . . . . . . . . . . 1 . . . . . . . . . . . . . . . . . . . Patrol Navigation 1 | . . . . . . . . 1 . . . . . . . . . . . . . . . . . . . . . . . . . . . . . . . . . Security Stations 3 | . . . . . . . . . . . . . . . . . . 1 . . . 1 . . . 1 . . . . . . . . . . . . . . . Proto ID Catalog 1 | . . . . . 1 . . . . . . . . . . . . . . . . . . . . . . . . . . . . . . . . . . . . Fabricator Hacks 3 | . . . . . . . . . . . . . . . . . 1 . . . . . . . . . 1 . 1 . . . . . . . . . . . . Network Status 2 | . . . . . . . . . . . . . . . . . 1 . . . . . . . . . 1 . . . . . . . . . . . . . . Build 1 | . . . . . . . . . . . . . . . . . . . . . . . . . . . . . 1 . . . . . . . . . . . . Repair Station Hacks 18 | . 4 . . . . . . . 8 . . . 1 . . . . . . . 1 . . . . . . . 2 . 2 . . . . . . . . . . Scan Component 10 | . 2 . . . . . . . 4 . . . 1 . . . . . . . 1 . . . . . . . 1 . 1 . . . . . . . . . . Repair 8 | . 2 . . . . . . . 4 . . . . . . . . . . . . . . . . . . . 1 . 1 . . . . . . . . . . Recycling Unit Hacks . | . . . . . . . . . . . . . . . . . . . . . . . . . . . . . . . . . . . . . . . . . . Scanalyzer 24 | . . . 3 . . . . . 2 . . . . . . . 2 . 3 . . . . . . . . . 5 . 1 . . . . 6 2 . . . . Insert Component 4 | . . . . . . . . . . . . . . . . . . . . . . . . . . . . . . . . . . . . 4 . . . . . Retrieve Study 20 | . . . 3 . . . . . 2 . . . . . . . 2 . 3 . . . . . . . . . 5 . 1 . . . . 2 2 . . . . Garrison Access Hacks 16 | . . . . . . . 1 . 1 . 1 . 2 . 1 . 1 . . . 2 . . . 1 . 1 . 1 . 1 . 1 . . . 1 . 1 . . Unlock Access 12 | . . . . . . . 1 . 1 . 1 . . . 1 . 1 . . . 1 . . . 1 . 1 . . . 1 . 1 . . . 1 . 1 . . Seal Access 2 | . . . . . . . . . . . . . 1 . . . . . . . . . . . . . . . 1 . . . . . . . . . . . . Coupler Status 2 | . . . . . . . . . . . . . 1 . . . . . . . 1 . . . . . . . . . . . . . . . . . . . . Unauthorized Hacks 28 | . 2 . 3 . . . 1 . 8 . . . 1 . . . 2 . . . 2 . . . 1 . 3 . 2 . . . 2 1 . . . . . . . Terminals 14 | . 1 . 1 . . . 1 . 6 . . . . . . . 1 . . . 1 . . . . . 1 . . . . . 1 1 . . . . . . . Track 1 | . . . . . . . . . 1 . . . . . . . . . . . . . . . . . . . . . . . . . . . . . . . . Assimilate 3 | . . . . . . . . . 3 . . . . . . . . . . . . . . . . . . . . . . . . . . . . . . . . Botnet 8 | . 1 . 1 . . . 1 . . . . . . . . . 1 . . . 1 . . . . . 1 . . . . . 1 1 . . . . . . . Operators 2 | . . . . . . . . . 2 . . . . . . . . . . . . . . . . . . . . . . . . . . . . . . . . Fabricators 3 | . . . . . . . . . . . . . . . . . . . . . . . . . . . 1 . 2 . . . . . . . . . . . . Fabnet 3 | . . . . . . . . . . . . . . . . . . . . . . . . . . . 1 . 2 . . . . . . . . . . . . Repair Stations 4 | . . . . . . . . . 2 . . . 1 . . . . . . . . . . . . . . . . . . . 1 . . . . . . . . Mechanics 2 | . . . . . . . . . . . . . 1 . . . . . . . . . . . . . . . . . . . 1 . . . . . . . . Patch 2 | . . . . . . . . . 2 . . . . . . . . . . . . . . . . . . . . . . . . . . . . . . . . Recycling Units 3 | . 1 . 2 . . . . . . . . . . . . . . . . . . . . . . . . . . . . . . . . . . . . . . Tunnel 3 | . 1 . 2 . . . . . . . . . . . . . . . . . . . . . . . . . . . . . . . . . . . . . . Scanalyzers . | . . . . . . . . . . . . . . . . . . . . . . . . . . . . . . . . . . . . . . . . . . Garrison Access 4 | . . . . . . . . . . . . . . . . . 1 . . . 1 . . . 1 . 1 . . . . . . . . . . . . . . Eject 4 | . . . . . . . . . . . . . . . . . 1 . . . 1 . . . 1 . 1 . . . . . . . . . . . . . . Data Cores Recovered 3 | . . . 2 . . . . . . . . . . . 1 . . . . . . . . . . . . . . . . . . . . . . . . . . Used . | . . . . . . . . . . . . . . . . . . . . . . . . . . . . . . . . . . . . . . . . . . Hacking Detections 118 | . 4 . 4 . . 1 3 2 13 1 1 3 7 . 2 3 5 2 6 . 3 2 . . 1 2 3 2 13 9 5 1 2 1 3 5 6 2 1 . . Full Trace Events 14 | . . . . . . . . . 1 . . 1 1 . . 2 . 1 1 . . 1 . . . 1 . 1 1 . . . . . . . 2 1 . . . Feedback Events . | . . . . . . . . . . . . . . . . . . . . . . . . . . . . . . . . . . . . . . . . . . Feedback Blocked . | . . . . . . . . . . . . . . . . . . . . . . . . . . . . . . . . . . . . . . . . . . Robot Schematics Acquired 2 | . . . . . . . . . . . . . . . . . . . . . . . . . . . . . . . . . . . . . 2 . . . . Robots Built . | . . . . . . . . . . . . . . . . . . . . . . . . . . . . . . . . . . . . . . . . . . Authchips . | . . . . . . . . . . . . . . . . . . . . . . . . . . . . . . . . . . . . . . . . . . Time . | . . . . . . . . . . . . . . . . . . . . . . . . . . . . . . . . . . . . . . . . . . Total Robot Build Rating . | . . . . . . . . . . . . . . . . . . . . . . . . . . . . . . . . . . . . . . . . . . Part Schematics Acquired 8 | . . . . . . . . . . . . . . . 1 . . . 1 . . . . . . . . . . . . . . . . . 6 . . . . Parts Built 1 | . . . . . . . . . . . . . . . . . . . . . . . . . . . . . 1 . . . . . . . . . . . . Authchips . | . . . . . . . . . . . . . . . . . . . . . . . . . . . . . . . . . . . . . . . . . . Time 139 | . . . . . . . . . . . . . . . . . . . . . . . . . . . . . 139 . . . . . . . . . . . . Total Part Build Rating 9 | . . . . . . . . . . . . . . . . . . . . . . . . . . . . . 9 . . . . . . . . . . . . Part Studies Acquired 20 | . . . 3 . . . . . 2 . . . . . . . 2 . 3 . . . . . . . . . 5 . 1 . . . . 2 2 . . . . Parts Repaired 8 | . 2 . . . . . . . 4 . . . . . . . . . . . . . . . . . . . 1 . 1 . . . . . . . . . . Time 267 | . 52 . . . . . . . 134 . . . . . . . . . . . . . . . . . . . 25 . 56 . . . . . . . . . . Parts Recycled . | . . . . . . . . . . . . . . . . . . . . . . . . . . . . . . . . . . . . . . . . . . Recycled Matter . | . . . . . . . . . . . . . . . . . . . . . . . . . . . . . . . . . . . . . . . . . . Retrieved Matter . | . . . . . . . . . . . . . . . . . . . . . . . . . . . . . . . . . . . . . . . . . . Retrieved Components . | . . . . . . . . . . . . . . . . . . . . . . . . . . . . . . . . . . . . . . . . . . Parts Scanalyzed . | . . . . . . . . . . . . . . . . . . . . . . . . . . . . . . . . . . . . . . . . . . Part Schematics Acquired . | . . . . . . . . . . . . . . . . . . . . . . . . . . . . . . . . . . . . . . . . . . Parts Damaged . | . . . . . . . . . . . . . . . . . . . . . . . . . . . . . . . . . . . . . . . . . . Bothacking | -11 -10 -10 -9 -9 -9 -8 -8 -8 -8 -8 -8 -8 -7 -7 -7 -7 -7 -7 -6 -6 -6 -6 -5 -5 -5 -5 -5 -5 -4 -4 -3 -3 -3 -3 -2 -2 -2 -2 -1 -1 -1 ------------ Run | Yrd Mat Min Mat Min Exi Min Mat Gar Mat Gar Mat Gar Fac Was Fac Gar Fac Gar Fac Was Fac Gar Fac Was Fac Gar Fac Gar Fac Arm Res Gar Res Gar Res Qua Sec Gar Acc Gar Acc Used RIF Installer 16 | . . . . . . . . 2 . 1 . 2 . . . 1 . 1 . . . 1 . . . 2 . 1 . . . 1 . 1 . . . 1 . 2 . Coupler Efficiency 3 | . . . . . . . . 1 . 1 . 1 . . . . . . . . . . . . . . . . . . . . . . . . . . . . . Threat Obfuscator 2 | . . . . . . . . . . . . 1 . . . . . . . . . . . . . . . . . . . . . . . . . . . 1 . Signal Jammer 1 | . . . . . . . . . . . . . . . . . . . . . . . . . . . . . . . . 1 . . . . . . . . . Zone Cloak 1 | . . . . . . . . . . . . . . . . . . . . . . . . . . . . . . . . . . 1 . . . . . . . Robot Detection 1 | . . . . . . . . . . . . . . . . . . . . . . . . . . 1 . . . . . . . . . . . . . . . Watcher Feeds 1 | . . . . . . . . . . . . . . . . . . 1 . . . . . . . . . . . . . . . . . . . . . . . Autooverride 3 | . . . . . . . . . . . . . . . . 1 . . . . . 1 . . . . . . . . . . . . . . . . . 1 . Autoassimilate 2 | . . . . . . . . . . . . . . . . . . . . . . . . . . . . 1 . . . . . . . . . 1 . . . Crosswire 1 | . . . . . . . . . . . . . . . . . . . . . . . . . . 1 . . . . . . . . . . . . . . . Robots Hacked 522 | . . . . . 4 . . . . 1 1 15 14 4 . 11 3 13 3 . 12 10 4 6 . 19 6 39 42 43 9 34 27 35 24 12 39 24 3 26 39 Non-combat 38 | . . . . . 3 . . . . . . 1 2 . . . 1 1 1 . 8 . . . . . 1 . 6 2 2 . . . 1 1 5 1 . . 2 Combat 484 | . . . . . 1 . . . . 1 1 14 12 4 . 11 2 12 2 . 4 10 4 6 . 19 5 39 36 41 7 34 27 35 23 11 34 23 3 26 37 Autooverrided 171 | . . . . . . . . . . . . . . . . . 1 4 . . 1 2 1 . . 12 4 19 16 17 2 6 10 15 11 6 8 10 2 5 19 Autoassimilated 113 | . . . . . . . . . . . . . . . . . . . . . . . . . . . . 1 12 13 2 10 10 8 4 6 8 9 1 13 16 Robot Hacks Applied 259 | . . . . . 4 . . . . 1 1 16 18 4 . 11 5 9 3 . 14 8 3 6 . 7 2 22 14 14 4 16 6 11 11 1 25 5 . 8 10 parse_system 18 | . . . . . 4 . . . . . . 1 1 . . . 1 1 . . 1 . . . . . . 6 . 2 . . . 1 . . . . . . . no_distress 1 | . . . . . . . . . . . . . . . . . . . . . . . . . . . . . . . . . . . . . 1 . . . . find_chute 2 | . . . . . . . . . . . . . 1 . . . . . 1 . . . . . . . . . . . . . . . . . . . . . . ignore_repairs 1 | . . . . . . . . . . . . . . . . . . . . . . . . . . . . . . . . . . . . . 1 . . . . find_fabricator 1 | . . . . . . . . . . . . . . . . . . . . . . . . . . . . . 1 . . . . . . . . . . . . drop_inventory 14 | . . . . . . . . . . . . . . . . . . . . . 4 . . . . . 1 . 3 . 2 . . . . 1 2 . . . 1 find_recycling 1 | . . . . . . . . . . . . . . . . . . . . . 1 . . . . . . . . . . . . . . . . . . . . ignore_parts 5 | . . . . . . . . . . . . . . . . . . . . . 5 . . . . . . . . . . . . . . . . . . . . purge_threat 13 | . . . . . . . . . . . . . 3 . . . 2 . . . . . . . . . . . . 2 . . . . 2 . . . . . 4 locate_traps 1 | . . . . . . . . . . . . . . . . . 1 . . . . . . . . . . . . . . . . . . . . . . . . block_reporting 1 | . . . . . . . . . . . . . . . . . . . . . . . . . . . . . . . . . . . 1 . . . . . . redirect_shields 2 | . . . . . . . . . . . . . . . . . . . . . . . . . . . . . 1 1 . . . . . . . . . . . disable_scanner 2 | . . . . . . . . . . . . . . . . . . . . . . . . . . . . . . . . . . . . . 2 . . . . locate_prototypes 1 | . . . . . . . . . . . . . . . . . . . . . . . . . . . . . . . . . . . . . 1 . . . . ignore_targets 10 | . . . . . . . . . . . . . . 4 . . . . . . . . . 6 . . . . . . . . . . . . . . . . . find_shortcuts 1 | . . . . . . . . . . . . . . . . . . . . . . . . . . . . 1 . . . . . . . . . . . . . find_garrison 4 | . . . . . . . . . . . . . . . . . . . . . . . . . . . . . 1 . . . 2 . . . 1 . . . . scatter_targeting 4 | . . . . . . . . . . . . . . . . . . . . . . . . . . . . 1 . 1 . . . . 1 . . . . . 1 overload_power 4 | . . . . . . . . . . . . . 2 . . 1 . . . . . . . . . . . . . . . . . . 1 . . . . . . amplify_resonance 10 | . . . . . . . . . . . . 3 2 . . 1 . 1 . . . 1 1 . . . . . . . . . . . . . . 1 . . . reboot_system 6 | . . . . . . . . . . . . . . . . 1 . . . . . . . . . . . 2 . . . . . . 1 . 1 1 . . . overwrite_iff 41 | . . . . . . . . . . . 1 5 7 . . 4 . 1 1 . 1 4 1 . . 3 . 1 . 2 . 7 . 2 . . . 1 . . . formatsys_low 8 | . . . . . . . . . . . . 1 . . . . . 1 . . . . . . . . . . 2 . . . . . . . 3 1 . . . formatsys_high 108 | . . . . . . . . . . 1 . 6 2 . . 4 1 5 1 . 2 3 1 . . 4 1 11 6 6 2 9 4 8 5 . 13 1 . 8 4 Relay Couplers Released 220 | . . . . . . . . . . 13 . 15 3 . . 14 4 19 . . 4 11 . . 4 16 4 21 3 . . 24 4 21 . . 3 16 . 15 6 Ejected 16 | . . . . . . . . . . . . . . . . . 4 . . . 4 . . . 4 . 4 . . . . . . . . . . . . . . Machine Destruction 194 | . . . . . . . . . . 10 . 15 3 . . 14 . 19 . . . 11 . . . 16 . 21 3 . . 24 4 21 . . . 16 . 15 2 Programmers 10 | . . . . . . . . . . 3 . . . . . . . . . . . . . . . . . . . . . . . . . . 3 . . . 4 Attached 104 | . . . . . . . . . . 1 1 7 3 1 . 5 2 5 1 . 2 8 1 . . 7 1 8 3 3 1 10 2 7 4 1 3 4 1 5 7 Crosswired 66 | . . . . . . . . . . . . . . . . . . . . . . . . . . 9 . 9 2 . . 16 1 8 . . 2 10 . 6 3 Fabnet Peak Effective % 7 | . . . . . . . . . . . . . . . . . . . . . . . . . . . . . 3 3 7 7 7 7 2 2 2 2 . . . Autooverrided 17 | . . . . . . . . . . . . . . . . . . . . . . . . . . . . . 2 2 1 6 2 4 . . . . . . . Robots Rewired 31 | . . . . . . . . . . . . 1 . . . . . 2 1 . . . . . . . . 6 . 6 . 2 . 1 . . 1 9 . 2 . Allies Hacked 27 | . . . . . . . . . . . . 1 . . . . . . . . . . . . . 2 . 2 1 2 2 2 . 3 3 3 1 5 . . . Hacks Repelled . | . . . . . . . . . . . . . . . . . . . . . . . . . . . . . . . . . . . . . . . . . . Allies | -11 -10 -10 -9 -9 -9 -8 -8 -8 -8 -8 -8 -8 -7 -7 -7 -7 -7 -7 -6 -6 -6 -6 -5 -5 -5 -5 -5 -5 -4 -4 -3 -3 -3 -3 -2 -2 -2 -2 -1 -1 -1 -------- Run | Yrd Mat Min Mat Min Exi Min Mat Gar Mat Gar Mat Gar Fac Was Fac Gar Fac Gar Fac Was Fac Gar Fac Was Fac Gar Fac Gar Fac Arm Res Gar Res Gar Res Qua Sec Gar Acc Gar Acc Total Allies 530 | . . 3 . 1 . . . . 2 1 1 13 8 19 . 10 2 15 3 . 4 9 3 18 . 21 5 39 38 46 7 36 26 36 20 11 32 33 3 28 37 Largest Group 21 | . . 3 3 1 . . . . 1 1 1 3 2 19 17 12 1 6 3 . 2 3 4 19 17 19 18 17 20 17 4 14 21 10 8 9 7 12 11 15 17 Highest-Rated Group 1078 | . . 40 40 31 . . . . 10 15 15 56 45 465 395 325 12 169 59 . 64 93 140 689 589 686 679 814 1010 774 199 829 1078 511 597 540 399 807 647 970 1023 Highest-Rated Ally 219 | . . 16 16 31 . . . . 10 15 15 29 32 35 31 31 12 95 29 . 32 47 49 51 51 51 51 148 148 64 82 142 142 82 183 69 73 148 95 148 219 Total Orders 94 | . . . . . . . . . 7 . . 8 1 . . . . 7 3 . 1 2 2 . . 4 1 14 3 3 . 3 . 12 . . 11 6 . 6 . STAY 48 | . . . . . . . . . 4 . . 4 . . . . . 3 2 . 1 1 1 . . 2 1 5 1 2 . 2 . 7 . . 5 4 . 3 . ROAM 6 | . . . . . . . . . . . . 1 . . . . . . . . . . . . . . . 4 . . . . . . . . 1 . . . . FOLLOW 36 | . . . . . . . . . 3 . . 3 1 . . . . 3 1 . . 1 1 . . 2 . 5 1 1 . 1 . 5 . . 4 1 . 3 . AID 4 | . . . . . . . . . . . . . . . . . . 1 . . . . . . . . . . 1 . . . . . . . 1 1 . . . Ally Attacks 2743 | . . . 50 3 . . . . . 1 16 31 30 . 60 75 11 63 27 . 10 31 12 46 . 183 54 125 299 293 27 87 221 167 107 115 174 68 6 86 265 Total Damage 78101 | . . . 521 40 . . . . . 29 324 485 405 . 829 1150 89 1724 471 . 126 813 326 1957 . 4292 1670 3006 9658 7175 695 2341 6043 4657 4566 4168 5862 2191 118 3180 9190 Kills 408 | . . . 5 . . . . . . 1 5 5 5 . 10 11 . 19 2 . 3 5 2 1 . 24 5 16 67 33 3 14 20 20 25 11 22 13 1 14 46 Allies Corrupted 20 | . . . . . . . . . . . . . . . . . . . . . . . . . . . . 1 1 6 1 . . . 1 1 4 1 . 1 3 Allies Melted 3 | . . . . . . . . . . . . . . . . . . 1 . . . . . . . . . . . 1 . . . 1 . . . . . . . Intel | -11 -10 -10 -9 -9 -9 -8 -8 -8 -8 -8 -8 -8 -7 -7 -7 -7 -7 -7 -6 -6 -6 -6 -5 -5 -5 -5 -5 -5 -4 -4 -3 -3 -3 -3 -2 -2 -2 -2 -1 -1 -1 ------- Run | Yrd Mat Min Mat Min Exi Min Mat Gar Mat Gar Mat Gar Fac Was Fac Gar Fac Gar Fac Was Fac Gar Fac Was Fac Gar Fac Gar Fac Arm Res Gar Res Gar Res Qua Sec Gar Acc Gar Acc Active Infowar (turns) 48471 | 90 419 721 2425 1480 655 755 536 402 1570 . . . 1749 1265 427 2122 1014 2032 1337 589 860 1233 286 1182 80 1658 151 1679 2222 1931 971 984 823 1492 854 1841 3578 1980 270 2113 2695 Optics 26109 | . . . . . . . . . . . . . 1749 1265 427 2122 1014 2032 986 . . . . . . . . . . . . 868 823 1492 854 1841 3578 1980 270 2113 2695 Seismic 9691 | 90 419 721 2425 1480 655 755 536 402 1570 . . . . . . . . . 1 63 574 . . . . . . . . . . . . . . . . . . . . Jamming 17610 | . . . . . . . . . . . . . . . . 1470 552 1584 1328 589 578 1233 286 1182 80 1658 151 1679 2222 1931 971 116 . . . . . . . . . Robot Analysis Total 3 | . . . 1 . . 1 . . 1 . . . . . . . . . . . . . . . . . . . . . . . . . . . . . . . . Derelict Logs Recovered 3 | . . 1 . 2 . . . . . . . . . . . . . . . . . . . . . . . . . . . . . . . . . . . . . Drone Launches . | . . . . . . . . . . . . . . . . . . . . . . . . . . . . . . . . . . . . . . . . . . Drone Recoveries . | . . . . . . . . . . . . . . . . . . . . . . . . . . . . . . . . . . . . . . . . . . Exploration | -11 -10 -10 -9 -9 -9 -8 -8 -8 -8 -8 -8 -8 -7 -7 -7 -7 -7 -7 -6 -6 -6 -6 -5 -5 -5 -5 -5 -5 -4 -4 -3 -3 -3 -3 -2 -2 -2 -2 -1 -1 -1 ------------- Run | Yrd Mat Min Mat Min Exi Min Mat Gar Mat Gar Mat Gar Fac Was Fac Gar Fac Gar Fac Was Fac Gar Fac Was Fac Gar Fac Gar Fac Arm Res Gar Res Gar Res Qua Sec Gar Acc Gar Acc Turns Passed 58377 | 186 1207 828 2426 1480 655 755 587 837 2822 1496 428 1789 2229 1265 427 2122 1014 2032 1337 589 860 1412 286 1182 80 1658 721 1922 2222 1931 971 1728 823 1492 854 1841 3578 1980 270 2113 3942 Spaces Moved 22693 | 89 539 426 952 569 319 339 207 344 1086 619 158 718 875 425 175 692 380 731 492 235 274 489 105 408 27 595 257 798 1316 849 567 740 351 642 348 764 1013 674 111 691 1304 Core 21 | 21 . . . . . . . . . . . . . . . . . . . . . . . . . . . . . . . . . . . . . . . . . Treads 22672 | 68 539 426 952 569 319 339 207 344 1086 619 158 718 875 425 175 692 380 731 492 235 274 489 105 408 27 595 257 798 1316 849 567 740 351 642 348 764 1013 674 111 691 1304 Legs . | . . . . . . . . . . . . . . . . . . . . . . . . . . . . . . . . . . . . . . . . . . Wheels . | . . . . . . . . . . . . . . . . . . . . . . . . . . . . . . . . . . . . . . . . . . Hover . | . . . . . . . . . . . . . . . . . . . . . . . . . . . . . . . . . . . . . . . . . . Flight . | . . . . . . . . . . . . . . . . . . . . . . . . . . . . . . . . . . . . . . . . . . Fastest Speed 50 | 50 160 160 160 200 200 200 200 200 200 200 200 200 200 200 240 240 240 240 240 240 240 240 240 240 240 240 150 150 150 150 150 150 205 205 205 205 250 240 240 200 250 Average Speed 211 | 134 160 160 209 200 200 200 200 200 200 200 202 200 203 237 240 240 240 240 240 240 240 240 240 240 240 240 213 190 151 180 150 200 205 205 205 213 250 244 240 247 259 Slowest Speed 305 | 160 160 160 240 200 200 200 200 200 280 200 240 200 240 240 240 240 240 240 240 240 240 240 240 240 240 240 240 230 230 230 150 205 205 205 205 250 250 250 240 250 305 Overloaded Moves . | . . . . . . . . . . . . . . . . . . . . . . . . . . . . . . . . . . . . . . . . . . Propulsion Burnouts . | . . . . . . . . . . . . . . . . . . . . . . . . . . . . . . . . . . . . . . . . . . Robots Hopped 1 | . . . . . . . . . . . . . . . . . . . . . . . . 1 . . . . . . . . . . . . . . . . . Potential Cave-ins 1 | . . . . . . . . . . . . . . . . . . 1 . . . . . . . . . . . . . . . . . . . . . . . Cave-ins Triggered . | . . . . . . . . . . . . . . . . . . . . . . . . . . . . . . . . . . . . . . . . . . Teleports 1 | . . . . . . . . . . . . . . . . . . . . . . . . . . . . . . . . . . . . . 1 . . . . Exploration Rate (%) 53 | 5 56 76 72 93 67 66 22 49 86 69 18 78 33 94 5 72 10 75 15 92 11 71 5 97 2 74 11 76 53 64 30 77 17 80 28 86 82 84 8 73 46 Regions Visited 41 Branch Regions 7 Pre-discovered Areas 7 | . 1 1 2 2 1 . . . . . . . . . . . . . . . . . . . . . . . . . . . . . . . . . . . . Known Exits Taken 13 | . . . . . . . 1 . 1 . 1 . . . 1 . 1 . . . 1 . . . 1 . 1 . . . 1 . 1 . 1 . 1 . 1 . . Unknown Exits Taken 10 | 1 1 1 1 1 1 1 . . . . . . . . . . . . . . . . . . . . . . 1 1 . . . . . 1 . . . . . Scrap Searched 4 | . . 2 . 1 . 1 . . . . . . . . . . . . . . . . . . . . . . . . . . . . . . . . . . . Spaces Dug 305 | . . . . 1 . . . 10 18 . . 8 27 . . . 5 13 7 . 10 8 1 . . 15 2 28 7 11 17 6 8 4 8 12 8 7 . 25 39 Terrain Destroyed 1012 | . . . 6 90 . . . 39 126 25 2 18 120 3 . 11 17 24 14 . 29 38 2 2 . 24 4 45 27 30 30 16 13 11 15 62 29 23 . 31 86 Melee 11 | . . . . 1 . . . 2 . . . 8 . . . . . . . . . . . . . . . . . . . . . . . . . . . . . Projectile 572 | . . . . . . . . . 63 . 2 . 90 3 . 2 17 18 14 . 29 5 2 2 . 24 4 24 20 30 22 16 13 11 15 25 17 19 . 16 69 AOE 429 | . . . 6 89 . . . 37 63 25 . 10 30 . . 9 . 6 . . . 33 . . . . . 21 7 . 8 . . . . 37 12 4 . 15 17 Terrain Rammed . | . . . . . . . . . . . . . . . . . . . . . . . . . . . . . . . . . . . . . . . . . . Walls Destroyed . | . . . . . . . . . . . . . . . . . . . . . . . . . . . . . . . . . . . . . . . . . . Machines Disabled . | . . . . . . . . . . . . . . . . . . . . . . . . . . . . . . . . . . . . . . . . . . Actions | -11 -10 -10 -9 -9 -9 -8 -8 -8 -8 -8 -8 -8 -7 -7 -7 -7 -7 -7 -6 -6 -6 -6 -5 -5 -5 -5 -5 -5 -4 -4 -3 -3 -3 -3 -2 -2 -2 -2 -1 -1 -1 --------- Run | Yrd Mat Min Mat Min Exi Min Mat Gar Mat Gar Mat Gar Fac Was Fac Gar Fac Gar Fac Was Fac Gar Fac Was Fac Gar Fac Gar Fac Arm Res Gar Res Gar Res Qua Sec Gar Acc Gar Acc Total 30337 | 120 793 548 1190 865 330 393 338 426 1568 774 232 955 1129 586 183 992 441 912 598 258 418 645 128 514 43 759 421 1096 1490 1104 668 972 444 802 453 972 2029 1011 114 998 1625 Wait 2995 | . 171 97 63 240 1 42 94 18 288 35 18 30 45 43 4 89 4 30 17 2 74 31 9 12 12 48 141 113 68 74 43 48 41 60 5 27 682 62 . 55 59 Move 22659 | 88 538 425 951 568 318 338 207 343 1086 618 158 717 875 424 175 691 379 730 492 234 273 488 105 405 26 594 256 797 1315 848 567 739 351 641 347 763 1013 672 111 690 1303 Hop 1 | . . . . . . . . . . . . . . . . . . . . . . . . 1 . . . . . . . . . . . . . . . . . Pick Up 326 | 6 15 3 23 6 . . 5 4 9 11 3 14 9 10 2 21 6 13 6 4 2 9 1 1 1 8 3 8 10 8 5 16 3 7 2 11 25 12 . 17 7 Fast Attach 147 | 3 3 . 6 2 . . 1 . 9 . 5 2 5 5 . 6 3 2 7 1 . 4 . 2 . 1 1 1 5 1 4 5 2 1 2 12 13 5 . 11 17 Attach 155 | 4 2 1 8 4 . . 2 1 1 4 1 7 3 . . 14 2 5 4 1 1 . 1 1 1 2 1 5 4 4 3 9 . 3 4 6 19 6 1 13 7 Detach 68 | . . . 2 . . . . . 2 2 1 3 1 1 . 6 1 4 4 1 1 . . . 1 1 . 3 3 . 1 4 . . . 5 5 3 . 9 4 Swap 517 | . 7 3 7 13 4 . 2 13 38 20 12 38 28 11 . 25 8 18 8 3 6 29 2 12 2 9 5 20 22 29 2 9 3 9 7 8 30 14 . 16 25 Drop 334 | . 2 3 24 6 . . 4 3 24 8 10 17 18 16 2 13 6 10 11 8 1 10 . 5 . 7 5 3 10 5 4 13 5 6 1 15 23 8 . 12 16 Fire 2717 | 19 46 13 97 19 3 11 20 30 98 71 22 69 135 76 . 117 27 81 42 4 56 69 9 75 . 73 7 125 49 119 33 114 37 60 77 113 212 143 . 165 181 Melee 46 | . . . . 3 4 . . 6 . . 2 30 1 . . . . . . . . . . . . . . . . . . . . . . . . . . . . Ram . | . . . . . . . . . . . . . . . . . . . . . . . . . . . . . . . . . . . . . . . . . . Kick . | . . . . . . . . . . . . . . . . . . . . . . . . . . . . . . . . . . . . . . . . . . Crush 93 | . 9 3 9 4 . 2 3 . 13 . . . 3 . . . 5 . 6 . 2 1 . . . . 1 . 3 . 6 . . . 7 5 5 1 . . 5 Escape Stasis 145 | . . . . . . . . 8 . 4 . 18 6 . . 9 . 17 . . . 4 . . . 14 . 16 . . . 6 . 11 . 4 . 16 2 10 . Rewire 134 | . . . . . . . . . . 1 . 10 . . . 1 . 2 1 . 2 . 1 . . 2 1 5 1 16 . 9 2 4 1 3 2 69 . . 1 Trap . | . . . . . . . . . . . . . . . . . . . . . . . . . . . . . . . . . . . . . . . . . . Miscellaneous . | . . . . . . . . . . . . . . . . . . . . . . . . . . . . . . . . . . . . . . . . . . Route ------- -11/Scrapyard -10/Materials (discovered 2 exits: [*Min] / [*Sub]) -10/Mines -9/Materials (discovered 4 exits: *Mat x2 / *Min / [*Sto]) -9/Mines (discovered 4 exits: *Mat x2 / *Exi / [*Zio]) -9/Exiles -8/Mines (discovered 2 exits: *Mat x2) -8/Materials (discovered 2 exits: Fac / Gar) -8/Garrison (discovered 3 exits: *Mat x3) -8/Materials (discovered 3 exits: *Fac x2 / Gar) -8/Garrison (discovered 3 exits: *Fac x2 / *Mat) -8/Materials -8/Garrison (discovered 3 exits: *Fac x3) -7/Factory -7/Waste -7/Factory -7/Garrison (discovered 3 exits: *Fac x3) -7/Factory -7/Garrison (discovered 3 exits: *Fac x3) -6/Factory -6/Waste -6/Factory -6/Garrison (discovered 3 exits: [*Fac x3]) -5/Factory -5/Waste -5/Factory -5/Garrison (discovered 3 exits: *Fac x3) -5/Factory -5/Garrison (discovered 3 exits: *Fac x3) -4/Factory (discovered 5 exits: *Res x2 / [*Upp x2] / *Arm) -4/Armory -3/Research (discovered 4 exits: *Res / *Tes x2 / Gar) -3/Garrison (discovered 3 exits: *Res x3) -3/Research (discovered 2 exits: *Res / Gar) -3/Garrison (discovered 3 exits: *Res x3) -2/Research (discovered 2 exits: *Qua x2) -2/Quarantine (discovered 3 exits: *Acc / *Sec / [*Frg]) -2/Section 7 (discovered 2 exits: *Acc / Gar) -2/Garrison (discovered 3 exits: *Acc x3) -1/Access -1/Garrison (discovered 2 exits: [*Acc x2]) -1/Access To Epsilon Eridani History --------- Turn | Location | Event 33 | -11/Scrapyard | Discovered new exit (range 15) 187 | -11/Scrapyard | Entered Materials 203 | -10/Materials | Discovered new exit (range 16) 302 | -10/Materials | Build established: Mutant 787 | -10/Materials | Derelicts attacked the area 1025 | -10/Materials | Core integrity fell below 50% 1054 | -10/Materials | Lost 3 parts (1p1u1w) 1280 | -10/Materials | Repaired Lgt. Treads 1307 | -10/Materials | Repaired Lgt. Treads 1347 | -10/Materials | Core integrity fell below 20% 1382 | -10/Materials | Discovered new exit (range 10) 1394 | -10/Materials | Entered Mines 1420 | -10/Mines | Met a Derelict bent on vengeance 1965 | -10/Mines | Received a Rocket Launcher from a helpful Derelict 2153 | -10/Mines | Discovered new exit (range 11) 2199 | -10/Mines | Assisted by bots powering up and referring to "LRC-V3" 2222 | -10/Mines | Entered Materials 2222 | -9/Materials | Accompanied by 3 allies 2222 | -9/Materials | Evolved 2 slots: Utility x2 2811 | -9/Materials | Discovered new exit (range 8) 2840 | -9/Materials | Discovered new exit (range 16) 2855 | -9/Materials | Lost 3 allies 3526 | -9/Materials | Central database locked down 3671 | -9/Materials | Build established: Scavenger-Mutant 4212 | -9/Materials | Discovered new exit (range 9) 4441 | -9/Materials | Discovered new exit (range 16) 4648 | -9/Materials | Entered Mines 4692 | -9/Mines | Found a Scrap Suit stashed away for nefarious purposes 4725 | -9/Mines | Met a Derelict testing a Signal Generator 4837 | -9/Mines | Discovered new exit (range 12) 5014 | -9/Mines | Discovered new exit (range 5) 5015 | -9/Mines | A Derelict revealed a hidden shortcut to a safe place 5171 | -9/Mines | Assembled infested the area 5310 | -9/Mines | Met a Derelict who couldn't figure out how to use a Trap Extractor 5904 | -9/Mines | Found a hidden stash of uninstalled traps 6118 | -9/Mines | Discovered new exit (range 5) 6128 | -9/Mines | Entered Exiles 6182 | -9/Exiles | Met 8R-AWN 6215 | -9/Exiles | Met EX-HEX 6298 | -9/Exiles | Met EX-DEC 6351 | -9/Exiles | Learned location of Zion (-7) 6395 | -9/Exiles | Met EX-BIN 6425 | -9/Exiles | Aligned with FarCom system 6427 | -9/Exiles | Given EX-Vault access code 6479 | -9/Exiles | Opened EX-Vault 6528 | -9/Exiles | Warned to stay clear of 0b10 Research branches 6740 | -9/Exiles | Attacked by the Exiles 6767 | -9/Exiles | Discovered new exit (range 10) 6783 | -9/Exiles | Entered Mines 7192 | -8/Mines | Discovered new exit (range 8) 7506 | -8/Mines | Discovered new exit (range 11) 7538 | -8/Mines | Entered Materials 7538 | -8/Materials | Evolved 2 slots: Utility x2 7539 | -8/Materials | Identified exit to Factory 8125 | -8/Materials | Identified exit to Garrison 8125 | -8/Materials | Entered Garrison 8163 | -8/Garrison | Installed Relay Interface Framework 8203 | -8/Garrison | Triggered checkpoint 8339 | -8/Garrison | Expanded RIF knowledge: Coupler Efficiency 8469 | -8/Garrison | Triggered checkpoint 8562 | -8/Garrison | Triggered checkpoint 8714 | -8/Garrison | Discovered new exit (range 21) 8714 | -8/Garrison | Discovered new exit (range 67) 8714 | -8/Garrison | Discovered new exit (range 93) 8962 | -8/Garrison | Entered Materials 9278 | -8/Materials | Central database locked down 9517 | -8/Materials | Discovered exit to Factory (range 8) 9770 | -8/Materials | Repaired Imp. Shield Generator 9797 | -8/Materials | Repaired Seismic Detector 9825 | -8/Materials | Repaired Lgt. Treads+ 9864 | -8/Materials | Repaired Imp. Heat Sink 10858 | -8/Materials | Discovered exit to Factory (range 4) 11784 | -8/Materials | Identified exit to Garrison 11784 | -8/Materials | Entered Garrison 11872 | -8/Garrison | Expanded RIF knowledge: Coupler Efficiency 11938 | -8/Garrison | Triggered checkpoint 11982 | -8/Garrison | Destroyed 9 combat bots 12255 | -8/Garrison | Discovered exit to Factory (range 10) 12329 | -8/Garrison | Garrison Relay disabled 12576 | -8/Garrison | Triggered checkpoint 12642 | -8/Garrison | Triggered checkpoint 12684 | -8/Garrison | Discovered new exit (range 6) 12898 | -8/Garrison | Triggered checkpoint 12931 | -8/Garrison | Garrison Relay disabled 13058 | -8/Garrison | Discovered exit to Factory (range 8) 13104 | -8/Garrison | Build established: Bothacker-Mutant 13280 | -8/Garrison | Entered Materials 13280 | -8/Materials | Accompanied by 1 ally 13442 | -8/Materials | Garrison activated, responded to threat 13708 | -8/Materials | Identified exit to Garrison 13708 | -8/Materials | Entered Garrison 13810 | -8/Garrison | Triggered checkpoint 13852 | -8/Garrison | Garrison Relay disabled 14016 | -8/Garrison | Triggered checkpoint 14044 | -8/Garrison | Core integrity fell below 50% 14096 | -8/Garrison | Triggered checkpoint 14152 | -8/Garrison | Lost 4 allies 14246 | -8/Garrison | Triggered checkpoint 14278 | -8/Garrison | Garrison Relay disabled 14337 | -8/Garrison | Discovered exit to Factory (range 10) 14628 | -8/Garrison | Triggered checkpoint 14770 | -8/Garrison | Discovered exit to Factory (range 3) 14857 | -8/Garrison | Garrison Relay disabled 15000 | -8/Garrison | Triggered checkpoint 15101 | -8/Garrison | Expanded RIF knowledge: Coupler Efficiency 15140 | -8/Garrison | Discovered exit to Factory (range 8) 15220 | -8/Garrison | Lost 3 allies 15286 | -8/Garrison | Expanded RIF knowledge: Threat Obfuscation 15394 | -8/Garrison | Triggered checkpoint 15419 | -8/Garrison | Build established: Botlord-Mutant 15428 | -8/Garrison | Garrison Relay disabled 15497 | -8/Garrison | Entered Factory 15497 | -7/Factory | Evolved 2 slots: Power x1, Utility x1 16325 | -7/Factory | Discovered new exit (range 10) 16535 | -7/Factory | Cargo convoy interrupted 16851 | -7/Factory | Build established: Bothacker-Mutant 17726 | -7/Factory | Sucked down chute 17726 | -7/Factory | Entered Waste 17740 | -7/Waste | Spotted C-40 Crusher 17757 | -7/Waste | Spotted C-40 Crusher 17787 | -7/Waste | Spotted C-40 Crusher 17803 | -7/Waste | Destroyed C-40 Crusher 17850 | -7/Waste | Spotted C-40 Crusher 17881 | -7/Waste | Destroyed C-40 Crusher 17901 | -7/Waste | Destroyed C-40 Crusher 17947 | -7/Waste | Spotted C-40 Crusher 17970 | -7/Waste | Spotted C-40 Crusher 17990 | -7/Waste | Destroyed C-40 Crusher 18032 | -7/Waste | Found Damper Plating 18060 | -7/Waste | Destroyed C-40 Crusher 18102 | -7/Waste | Destroyed C-40 Crusher 18176 | -7/Waste | Warlord forces began an assault 18510 | -7/Waste | Discovered new exit (range 14) 18991 | -7/Waste | Entered Factory 18991 | -7/Factory | Accompanied by 17 allies 19372 | -7/Factory | Garrison activated, responded to threat 19416 | -7/Factory | Identified exit to Garrison 19418 | -7/Factory | Entered Garrison 19418 | -7/Garrison | Accompanied by 12 allies 19421 | -7/Garrison | Lost 5 allies 19451 | -7/Garrison | Spotted B-75 Beast 19467 | -7/Garrison | Allies destroyed B-75 Beast 19529 | -7/Garrison | Lost 12 allies 19558 | -7/Garrison | Triggered checkpoint 19594 | -7/Garrison | Garrison Relay disabled 19745 | -7/Garrison | Heavy support dispatched to Factory 19806 | -7/Garrison | Triggered checkpoint 19814 | -7/Garrison | Triggered checkpoint 20058 | -7/Garrison | Triggered checkpoint 20096 | -7/Garrison | Garrison Relay disabled 20113 | -7/Garrison | Heavy support dispatched to Factory 20212 | -7/Garrison | Discovered new exit (range 17) 20283 | -7/Garrison | Rescued a captive Derelict 20284 | -7/Garrison | Rescued a captive Derelict 20405 | -7/Garrison | Build established: Botlord-Mutant 20465 | -7/Garrison | Discovered new exit (range 10) 20566 | -7/Garrison | Garrison Relay disabled 20775 | -7/Garrison | Expanded RIF knowledge: Autooverride 21094 | -7/Garrison | Spotted B-75 Beast 21140 | -7/Garrison | Destroyed B-75 Beast 21154 | -7/Garrison | Lost 6 parts (2p1n3u) 21243 | -7/Garrison | Discovered new exit (range 12) 21260 | -7/Garrison | Heavy support dispatched to Factory 21314 | -7/Garrison | Heavy support dispatched to Factory 21395 | -7/Garrison | Garrison Relay disabled 21396 | -7/Garrison | Triggered checkpoint 21540 | -7/Garrison | Entered Factory 21540 | -7/Factory | Accompanied by 1 ally 22532 | -7/Factory | Identified exit to Garrison 22554 | -7/Factory | Entered Garrison 22554 | -7/Garrison | Accompanied by 1 ally 22651 | -7/Garrison | Found embedded Infiltrators 22660 | -7/Garrison | Triggered checkpoint 22692 | -7/Garrison | Triggered checkpoint 22694 | -7/Garrison | Core integrity fell below 50% 22703 | -7/Garrison | Garrison Relay disabled 22726 | -7/Garrison | P-60 Hacker assimilated allied 87-TX1(x) 22903 | -7/Garrison | Triggered checkpoint 22934 | -7/Garrison | Triggered checkpoint 22938 | -7/Garrison | Triggered checkpoint 23016 | -7/Garrison | Triggered checkpoint 23044 | -7/Garrison | Garrison Relay disabled 23212 | -7/Garrison | Triggered checkpoint 23278 | -7/Garrison | Expanded RIF knowledge: Watcher Feeds 23318 | -7/Garrison | Discovered new exit (range 12) 23576 | -7/Garrison | Garrison Relay disabled 23821 | -7/Garrison | Discovered new exit (range 11) 23906 | -7/Garrison | Triggered checkpoint 24088 | -7/Garrison | Garrison Relay disabled 24212 | -7/Garrison | Triggered checkpoint 24255 | -7/Garrison | Lost 4 allies 24402 | -7/Garrison | Triggered checkpoint 24414 | -7/Garrison | Garrison Relay disabled 24466 | -7/Garrison | Learned Factory security intel 24555 | -7/Garrison | Discovered new exit (range 13) 24586 | -7/Garrison | Entered Factory 24586 | -6/Factory | Accompanied by 2 allies 24586 | -6/Factory | Evolved 2 slots: Utility x2 25268 | -6/Factory | Discovered new exit (range 7) 25466 | -6/Factory | Central database locked down 25923 | -6/Factory | Sucked down chute 25923 | -6/Factory | Entered Waste 25923 | -6/Waste | The area was eerily silent 26410 | -6/Waste | Discovered new exit (range 15) 26512 | -6/Waste | Entered Factory 27342 | -6/Factory | Identified exit to Garrison 27372 | -6/Factory | Entered Garrison 27372 | -6/Garrison | Accompanied by 2 allies 27466 | -6/Garrison | Triggered checkpoint 27518 | -6/Garrison | Garrison Relay disabled 27684 | -6/Garrison | Triggered checkpoint 27763 | -6/Garrison | Discovered new exit (range 12) 27775 | -6/Garrison | Discovered new exit (range 16) 27775 | -6/Garrison | Discovered new exit (range 62) 27775 | -6/Garrison | Discovered new exit (range 41) 27860 | -6/Garrison | Garrison Relay disabled 27924 | -6/Garrison | Learned Factory security intel 28078 | -6/Garrison | Triggered checkpoint 28134 | -6/Garrison | Lost 3 allies 28137 | -6/Garrison | Lost 3 parts (1p2u) 28315 | -6/Garrison | Spotted Executioner 28315 | -6/Garrison | Spotted Executioner 28626 | -6/Garrison | Triggered checkpoint 28671 | -6/Garrison | Expanded RIF knowledge: Autooverride 28716 | -6/Garrison | Garrison Relay disabled 28784 | -6/Garrison | Entered Factory 28784 | -5/Factory | Accompanied by 2 allies 28784 | -5/Factory | Evolved 2 slots: Utility x2 29070 | -5/Factory | Sucked down chute 29070 | -5/Factory | Entered Waste 29102 | -5/Waste | Spotted C-40 Crusher 29109 | -5/Waste | Spotted C-40 Crusher 29127 | -5/Waste | Allies destroyed C-40 Crusher 29130 | -5/Waste | 2 allies followed down the chute 29152 | -5/Waste | Spotted C-40 Crusher 29191 | -5/Waste | Spotted C-40 Crusher 29206 | -5/Waste | Spotted C-40 Crusher 29222 | -5/Waste | Destroyed C-40 Crusher 29254 | -5/Waste | Spotted C-40 Crusher 29326 | -5/Waste | Destroyed C-40 Crusher 29358 | -5/Waste | Destroyed C-40 Crusher 29370 | -5/Waste | Destroyed C-40 Crusher 29402 | -5/Waste | Destroyed C-40 Crusher 29776 | -5/Waste | Warlord forces began an assault 29824 | -5/Waste | Discovered new exit (range 12) 30252 | -5/Waste | Entered Factory 30252 | -5/Factory | Accompanied by 17 allies 30307 | -5/Factory | Identified exit to Garrison 30332 | -5/Factory | Entered Garrison 30332 | -5/Garrison | Accompanied by 17 allies 30354 | -5/Garrison | Triggered checkpoint 30401 | -5/Garrison | Lost 6 allies 30440 | -5/Garrison | Garrison Relay disabled 30765 | -5/Garrison | Lost 5 allies 30777 | -5/Garrison | Expanded RIF knowledge: Crosswire 30831 | -5/Garrison | Triggered checkpoint 30834 | -5/Garrison | Triggered checkpoint 30858 | -5/Garrison | Triggered checkpoint 30889 | -5/Garrison | Lost 9 allies 31028 | -5/Garrison | Garrison Relay disabled 31125 | -5/Garrison | Discovered new exit (range 8) 31343 | -5/Garrison | Discovered new exit (range 10) 31394 | -5/Garrison | Triggered checkpoint 31399 | -5/Garrison | Learned Factory security intel 31475 | -5/Garrison | Expanded RIF knowledge: Robot Detection 31671 | -5/Garrison | Discovered new exit (range 12) 31744 | -5/Garrison | Triggered checkpoint 31755 | -5/Garrison | Rescued a captive Derelict 31756 | -5/Garrison | Rescued a captive Derelict 31816 | -5/Garrison | Triggered checkpoint 31824 | -5/Garrison | Garrison Relay disabled 31990 | -5/Garrison | Entered Factory 31990 | -5/Factory | Accompanied by 16 allies 32305 | -5/Factory | Unchained authorized (DW-4LL) 32537 | -5/Factory | DW-4LL burst out of a wall 32562 | -5/Factory | Allies destroyed DW-4LL 32570 | -5/Factory | Found Prototype Processor 32574 | -5/Factory | Found Prototype Treads 32574 | -5/Factory | Identified DW-4LL's Griptreads 32586 | -5/Factory | Lost 3 allies 32706 | -5/Factory | Identified exit to Garrison 32711 | -5/Factory | Entered Garrison 32711 | -5/Garrison | Accompanied by 9 allies 32742 | -5/Garrison | Triggered checkpoint 32767 | -5/Garrison | Garrison Relay disabled 32799 | -5/Garrison | Triggered checkpoint 32801 | -5/Garrison | Triggered checkpoint 32803 | -5/Garrison | Spotted B-75 Beast 32821 | -5/Garrison | Destroyed B-75 Beast 32861 | -5/Garrison | Triggered checkpoint 32890 | -5/Garrison | Triggered checkpoint 32893 | -5/Garrison | Lost 14 allies 32950 | -5/Garrison | Lost 3 allies 33005 | -5/Garrison | Triggered checkpoint 33041 | -5/Garrison | Garrison Relay disabled 33195 | -5/Garrison | Discovered new exit (range 10) 33222 | -5/Garrison | Rescued a captive Derelict 33223 | -5/Garrison | Rescued a captive Derelict 33346 | -5/Garrison | Triggered checkpoint 33381 | -5/Garrison | Garrison Relay disabled 33452 | -5/Garrison | Discovered new exit (range 10) 33699 | -5/Garrison | Triggered checkpoint 33740 | -5/Garrison | Expanded RIF knowledge: Autoassimilate 33788 | -5/Garrison | Rewired B-86 Titan 33800 | -5/Garrison | Rewired B-90 Cyclops 33837 | -5/Garrison | Garrison Relay disabled 33864 | -5/Garrison | Discovered new exit (range 14) 33931 | -5/Garrison | Triggered checkpoint 33955 | -5/Garrison | Garrison Relay disabled 33974 | -5/Garrison | Lost 3 allies 34633 | -5/Garrison | Entered Factory 34633 | -4/Factory | Accompanied by 15 allies 34633 | -4/Factory | Evolved 2 slots: Utility x2 34879 | -4/Factory | Spotted B-86 Titan 34881 | -4/Factory | Assimilated Titan 7a with formatsys_high 35009 | -4/Factory | Lost 3 allies 35026 | -4/Factory | Fabricated Adv. Heavy Siege Treads (x1) 35029 | -4/Factory | Identified Exp. Armor Integrity Analyzer 35094 | -4/Factory | Found Tesla Bomb Launcher 35585 | -4/Factory | Discovered new exit (range 14) 35676 | -4/Factory | Discovered new exit (range 29) 35910 | -4/Factory | Repaired Lyr. Medium Armor Plating 36066 | -4/Factory | Found Quantum Capacitor 36078 | -4/Factory | Discovered new exit (range 15) 36133 | -4/Factory | First assault squad dispatched 36228 | -4/Factory | Discovered new exit (range 29) 36481 | -4/Factory | Discovered new exit (range 29) 36855 | -4/Factory | Entered Armory 36855 | -4/Armory | Accompanied by 10 allies 37523 | -4/Armory | Lost 4 allies 37785 | -4/Armory | Lost 19 allies 37875 | -4/Armory | Discovered new exit (range 11) 38542 | -4/Armory | Lost 3 allies 38786 | -4/Armory | Entered Research 38786 | -3/Research | Accompanied by 1 ally 38786 | -3/Research | Evolved 2 slots: Utility x2 39094 | -3/Research | Discovered new exit (range 37) 39473 | -3/Research | Found Exp. Terrain Scan Processor 39512 | -3/Research | Identified exit to Testing 39613 | -3/Research | Repaired Adv. Cooling System 39625 | -3/Research | Discovered new exit (range 15) 39757 | -3/Research | Identified exit to Garrison 39757 | -3/Research | Entered Garrison 39793 | -3/Garrison | Triggered checkpoint 39811 | -3/Garrison | Garrison Relay disabled 40123 | -3/Garrison | Triggered checkpoint 40123 | -3/Garrison | Triggered checkpoint 40125 | -3/Garrison | P-80 Master assimilated allied Warden 8c 40125 | -3/Garrison | Triggered checkpoint 40127 | -3/Garrison | Triggered checkpoint 40128 | -3/Garrison | P-80 Master assimilated allied Warden 8c 40145 | -3/Garrison | P-80 Master assimilated allied S-43 Plague 40182 | -3/Garrison | P-80 Master assimilated allied H-77 Assassin 40203 | -3/Garrison | Lost 9 allies 40207 | -3/Garrison | Heavy support dispatched to Research 40339 | -3/Garrison | Lost 3 allies 40382 | -3/Garrison | Discovered new exit (range 14) 40545 | -3/Garrison | H-XX Assembler disabled 40709 | -3/Garrison | Triggered checkpoint 40734 | -3/Garrison | Garrison Relay disabled 40903 | -3/Garrison | Triggered checkpoint 40926 | -3/Garrison | Garrison Relay disabled 40970 | -3/Garrison | Discovered new exit (range 8) 41090 | -3/Garrison | Triggered checkpoint 41115 | -3/Garrison | Garrison Relay disabled 41129 | -3/Garrison | Garrison Relay disabled 41238 | -3/Garrison | Discovered new exit (range 11) 41285 | -3/Garrison | Triggered checkpoint 41325 | -3/Garrison | Triggered checkpoint 41330 | -3/Garrison | Garrison Relay disabled 41331 | -3/Garrison | Local machine network offline 41409 | -3/Garrison | Expanded RIF knowledge: Signal Jamming 41485 | -3/Garrison | Entered Research 41485 | -3/Research | Accompanied by 12 allies 41565 | -3/Research | Spotted B-86 Titan 41578 | -3/Research | Garrison activated, responded to threat 41589 | -3/Research | Destroyed B-86 Titan 41807 | -3/Research | Discovered new exit (range 11) 41818 | -3/Research | Lost 3 allies 42249 | -3/Research | Garrison activated, responded to threat 42295 | -3/Research | Lost 4 allies 42303 | -3/Research | Identified exit to Garrison 42308 | -3/Research | Entered Garrison 42308 | -3/Garrison | Accompanied by 6 allies 42392 | -3/Garrison | Lost 3 allies 42437 | -3/Garrison | P-80 Master assimilated allied Warden 8i 42438 | -3/Garrison | Triggered checkpoint 42465 | -3/Garrison | Garrison Relay disabled 42468 | -3/Garrison | Local machine network offline 42480 | -3/Garrison | Spotted B-86 Titan 42486 | -3/Garrison | Spotted B-86 Titan 42545 | -3/Garrison | Spotted B-86 Titan 42547 | -3/Garrison | Triggered checkpoint 42550 | -3/Garrison | Triggered checkpoint 42552 | -3/Garrison | Triggered checkpoint 42558 | -3/Garrison | Triggered checkpoint 42563 | -3/Garrison | Destroyed B-86 Titan 42611 | -3/Garrison | Lost 13 allies 42648 | -3/Garrison | Triggered checkpoint 42680 | -3/Garrison | Expanded RIF knowledge: Zone Cloak 42718 | -3/Garrison | Garrison Relay disabled 42766 | -3/Garrison | Discovered new exit (range 21) 43082 | -3/Garrison | Lost 3 allies 43191 | -3/Garrison | Discovered new exit (range 10) 43222 | -3/Garrison | Triggered checkpoint 43253 | -3/Garrison | Garrison Relay disabled 43310 | -3/Garrison | Garrison Relay disabled 43530 | -3/Garrison | Garrison Relay disabled 43572 | -3/Garrison | Discovered new exit (range 8) 43800 | -3/Garrison | Entered Research 43800 | -2/Research | Accompanied by 8 allies 43800 | -2/Research | Evolved 2 slots: Power x1, Utility x1 43891 | -2/Research | Lost 3 allies 43970 | -2/Research | Lost 4 allies 44141 | -2/Research | Unchained authorized (GL-D0S) 44381 | -2/Research | Identified exit to Quarantine 44434 | -2/Research | Lost 4 allies 44527 | -2/Research | P-80 Master assimilated allied Warden 9a 44641 | -2/Research | Lost 4 parts (1p2u1w) 44654 | -2/Research | Entered Quarantine 44658 | -2/Quarantine | Spotted Alpha 7 44827 | -2/Quarantine | Found Imp. Powered Armor 44853 | -2/Quarantine | Found Quantum Capacitor 45016 | -2/Quarantine | Found Alien Artifact 45021 | -2/Quarantine | Found Alien Artifact 45030 | -2/Quarantine | Found Alien Artifact 45043 | -2/Quarantine | Found Alien Artifact 45052 | -2/Quarantine | Build established: Commander-Mutant 45414 | -2/Quarantine | Discovered new exit (range 11) 45433 | -2/Quarantine | Found Alien Artifact 45539 | -2/Quarantine | P-80 Master assimilated allied Enforcer 9f 45683 | -2/Quarantine | Identified Core Reset Matrix 45683 | -2/Quarantine | Identified Hpw. Transdimensional Reconstructor (x2) 45683 | -2/Quarantine | Identified Dimensional Node Initializer 45683 | -2/Quarantine | Identified Transdimensional Reconstructor 45845 | -2/Quarantine | Build established: Botlord-Mutant 46108 | -2/Quarantine | Spotted Fortress 46164 | -2/Quarantine | Destroyed Fortress 46180 | -2/Quarantine | System corruption reached 10% 46483 | -2/Quarantine | Discovered new exit (range 6) 46483 | -2/Quarantine | Discovered new exit (range 7) 46495 | -2/Quarantine | Entered Section 7 46495 | -2/Section 7 | Accompanied by 2 allies 46673 | -2/Section 7 | Found Alien Artifact 46721 | -2/Section 7 | Spotted S7 Guard 46746 | -2/Section 7 | Allies destroyed S7 Guard 46752 | -2/Section 7 | Found Prototype Protection 46752 | -2/Section 7 | Identified Hvy. Regenerative Plating 46778 | -2/Section 7 | Found Alien Artifact 46803 | -2/Section 7 | Identified Integrated Mediator 46803 | -2/Section 7 | Identified Core Physics Calibrator 46805 | -2/Section 7 | Installed Integrated Mediator, increased core attachment efficiency 46889 | -2/Section 7 | P-80 Master assimilated allied Terminator 9d 46960 | -2/Section 7 | Lost 3 allies 47070 | -2/Section 7 | Discovered new exit (range 19) 47131 | -2/Section 7 | Initialized slip node 47321 | -2/Section 7 | Found Prototype Device 47321 | -2/Section 7 | Identified Thermal Barrier 47353 | -2/Section 7 | Found Quantum Capacitor 47519 | -2/Section 7 | Spotted Alpha 7 47542 | -2/Section 7 | Destroyed Alpha 7 47560 | -2/Section 7 | Spotted Alpha 7 47622 | -2/Section 7 | Allies destroyed Alpha 7 47672 | -2/Section 7 | Found Prototype Processor 47672 | -2/Section 7 | Identified Exp. Target Analyzer 47710 | -2/Section 7 | Spotted B-99 Colossus 47733 | -2/Section 7 | Destroyed B-99 Colossus 47898 | -2/Section 7 | Found Alien Artifact 47910 | -2/Section 7 | Identified LRC Storage 47911 | -2/Section 7 | Installed LRC Storage, increased inventory capacity (+2) 48240 | -2/Section 7 | Spotted Executioner 48240 | -2/Section 7 | Spotted Executioner 48255 | -2/Section 7 | Destroyed Executioner 48264 | -2/Section 7 | Destroyed Executioner 48301 | -2/Section 7 | Found Exp. Targeting Computer 48312 | -2/Section 7 | Spotted Striker 48358 | -2/Section 7 | Spotted Striker 48540 | -2/Section 7 | Spotted Striker 48540 | -2/Section 7 | Spotted Striker 48566 | -2/Section 7 | Found Sigix Sheargun 48572 | -2/Section 7 | Found Sigix Sheargun 49165 | -2/Section 7 | Warped through subspace to slip node 49431 | -2/Section 7 | Spotted B-90 Cyclops 49438 | -2/Section 7 | Destroyed B-90 Cyclops 49467 | -2/Section 7 | Lost 4 allies 49479 | -2/Section 7 | Found Alien Artifact 49681 | -2/Section 7 | Core integrity fell below 50% 49726 | -2/Section 7 | Spotted S7 Guard 49746 | -2/Section 7 | Destroyed S7 Guard 49766 | -2/Section 7 | Found Alien Artifact 49992 | -2/Section 7 | Installed Integrated Thermoelectric Network, gained heat-energy exchange potential 50041 | -2/Section 7 | Garrison activated, responded to threat 50073 | -2/Section 7 | Identified exit to Garrison 50073 | -2/Section 7 | Entered Garrison 50110 | -2/Garrison | Expanded RIF knowledge: Autoassimilate 50356 | -2/Garrison | Triggered checkpoint 50370 | -2/Garrison | Garrison Relay disabled 50549 | -2/Garrison | Triggered checkpoint 50559 | -2/Garrison | Triggered checkpoint 50608 | -2/Garrison | Lost 4 allies 50735 | -2/Garrison | Discovered new exit (range 12) 50889 | -2/Garrison | Build established: Scavenger-Mutant 50913 | -2/Garrison | Triggered checkpoint 50942 | -2/Garrison | Garrison Relay disabled 51223 | -2/Garrison | Triggered checkpoint 51264 | -2/Garrison | Garrison Relay disabled 51496 | -2/Garrison | Discovered new exit (range 5) 51649 | -2/Garrison | Triggered checkpoint 51723 | -2/Garrison | Triggered checkpoint 51777 | -2/Garrison | Garrison Relay disabled 51811 | -2/Garrison | Triggered checkpoint 51860 | -2/Garrison | Found embedded Infiltrators 51922 | -2/Garrison | Discovered new exit (range 12) 51929 | -2/Garrison | Spotted B-90 Cyclops 51947 | -2/Garrison | Destroyed B-90 Cyclops 52053 | -2/Garrison | Entered Access 52053 | -1/Access | Accompanied by 10 allies 52053 | -1/Access | Evolved 2 slots: Utility x2 52323 | -1/Access | Identified exit to Garrison 52323 | -1/Access | Entered Garrison 52323 | -1/Garrison | Accompanied by 10 allies 52356 | -1/Garrison | Triggered checkpoint 52363 | -1/Garrison | Triggered checkpoint 52366 | -1/Garrison | Triggered checkpoint 52376 | -1/Garrison | Triggered checkpoint 52380 | -1/Garrison | Spotted B-99 Colossus 52450 | -1/Garrison | Lost 17 allies 52518 | -1/Garrison | Destroyed B-99 Colossus 52641 | -1/Garrison | Expanded RIF knowledge: Threat Obfuscation 52866 | -1/Garrison | Triggered checkpoint 52902 | -1/Garrison | Garrison Relay disabled 53130 | -1/Garrison | Build established: Botlord-Mutant 53185 | -1/Garrison | Triggered checkpoint 53212 | -1/Garrison | Garrison Relay disabled 53389 | -1/Garrison | Discovered new exit (range 12) 53625 | -1/Garrison | Triggered checkpoint 53676 | -1/Garrison | Spotted B-75 Beast 53678 | -1/Garrison | Lost 3 allies 53686 | -1/Garrison | Spotted B-86 Titan 53710 | -1/Garrison | Destroyed B-86 Titan 53731 | -1/Garrison | Destroyed B-75 Beast 53751 | -1/Garrison | Rewired B-90 Cyclops 53754 | -1/Garrison | Rewired B-86 Titan 53979 | -1/Garrison | Triggered checkpoint 53993 | -1/Garrison | Garrison Relay disabled 54126 | -1/Garrison | Found Relay Coupler [Proto] 54131 | -1/Garrison | Found Relay Coupler [Proto] 54135 | -1/Garrison | Found Relay Coupler [Proto] 54286 | -1/Garrison | Discovered new exit (range 8) 54315 | -1/Garrison | Expanded RIF knowledge: Autooverride 54436 | -1/Garrison | Entered Access 54436 | -1/Access | Accompanied by 12 allies 54443 | -1/Access | Garrison activated, responded to threat 54529 | -1/Access | Lost 12 allies 54605 | -1/Access | Unchained authorized (GL-D0S) 54638 | -1/Access | Lost 5 allies 55078 | -1/Access | Lost 4 allies 56046 | -1/Access | System corruption reached 10% 56127 | -1/Access | Lost 5 parts (5u) 56173 | -1/Access | Spotted B-99 Colossus 56174 | -1/Access | Autoassimilated Colossus 10a with RIF 56393 | -1/Access | Found Hvy. Reflective Plating 57079 | -1/Access | P-80 Master assimilated allied Plague 10j 58014 | -1/Access | System corruption reached 30% 58186 | -1/Access | First assault squad dispatched 58226 | -1/Access | Spotted B-99 Colossus 58239 | -1/Access | Spotted B-99 Colossus 58246 | -1/Access | Destroyed B-99 Colossus 58311 | -1/Access | Destroyed B-99 Colossus 58366 | -1/Access | Discovered new exit (range 5) 58378 | *** | Escaped! Last Messages --------------- 58322_ System corrupted: Energy discharge (-186). 58337_ System corrupted: Energy discharge (-168). 58345_ Sealed Heavy Doors breached. 58354_ R-10 Processor collects Imp. Ion Engine. 58355_ AJMV4ZG|EQILFVHLDXOPK KBFBZX> 58366_ System corrupted: Enh. Nova Cannon+ failed to cycle. 58366_ Main Access Shell breached. 58366_ EXIT=FOUND 58371_ System corrupted: Substantial component data lost. 58371_ R-10 Processor collects Linear Accelerator. 58374_ R-10 Processor collects Rnf. Quantum Reactor. 58376_ R-10 Processor collects Arm. Heavy Treads. [Achievement: Slow And Deadly Wins The Race] Map ----- +----------------------------------------------------+ | ??????????????????????????? ??# #????????? | | ??????????????????????????########??##% #????????? | | ????????????????????????##############% #????????? | | ????????????????????????# ] # %#????????? | | ????????????????????????# # #????????? | | ????????????????????????# #% #????????? | | ????????????????????????# #= ########## | | ????????????????????????# ! #% % [*= | | ????????????????????????# + =% | | ????????????????????????# " # ########## | | ????????????????????????# """" # ########## | | ????????????????????????# """"" # # | | ????????????????????????# """"" # # | | ????????????????????????# """" # # | | ????????????????????????# " # # | | ????????????????????????############## + | | ?????????????????????????????????????# # | | ?????????????????????????????????????# # | | ?????????????????????????????????????# ####+##### | | ?????????????????????????????????????# ## #? | | ?????????#########??######????"####### %## #? | | ?????###?#!!!*% "??" ?????" % ## ## | | ?????# ###!!%!! %"??" ??????" [ #" + | | ######"#""![] ! """" """"""??" ## #? | | [ = "??" ## #? | | """" " "@ "??" ## +? | | % % "??" " "" "??" ## #? | | % "??" " "??" ## #? | | ##"""%!="" "??" """"""??" ## #? | | =% " " "??" ???????"""" "" ## #? | | %% # " "??" ???????""""T""" #" #? | | % ###########??###???????"####### #" #? | | # #???????????????????????????# ####+#### | | "#"+################################## #### #### | | ?## + " # ##?# / | | ??# ##+##+############### """ # #??###### | | ??# # #???????# """ + #???????? | | ??# / #???????# " # ########## | | ??# ### #???????#! + | | ### #?# != #???????# # | | #?# != #???????# ######+###### | | #?# =! #???????# # # #? | | #?# #???????########### # % #? | | ## #?#############????????????????# # #? | | ## ##?????????????????????????????## # #? | | # #?????????????????????????????# # #? | | # #??????????????????????????????# # #? | | # +??????????????????????????????# # #? | | # #??????????????????????????????# # % #? | | # #??????????????????????????????# # %% #? | +----------------------------------------------------+ Best States ------------- Heat Dissipation 177 Coolant Potential 100 Energy Generation 75 Energy Capacity 1240 Matter Stores 300 Matter Capacity 300 Sight Range 23 Terrain Scan Density 10 Jamming Range 14 EM Shielding 3 Armor Coverage 1650 Resistance: TH 50 Point Defense Rating 240 Weapon Cycling 25 Phase Shifting 15 Evasion (%) 55 Targeting Accuracy 20 Core Analysis 6 Armor Integrity Analysis 50 Recoil Reduction 2 Offensive Hacking 10 Defensive Hacking 10 Relay Coupler Types 9 Relay Coupler Value 385 Item Schematics ----------------- Imp. System Restoration Module | -7/Factory | Hacked Imp. Proton Missile Launcher | -6/Factory | Hacked Exp. Shock Absorption System | -2/Section 7 | Archive Graviton Cannon | -2/Section 7 | Archive Hds. Centrium Leg | -2/Section 7 | Archive Prc. Energy Filter | -2/Section 7 | Archive Adv. Plasma Rifle | -2/Section 7 | Archive Imp. KE Penetrator | -2/Section 7 | Archive Robot Schematics ------------------ A-15 Conveyor | -2/Section 7 | Archive A-27 Freighter | -2/Section 7 | Archive Fabricated ------------ Adv. Heavy Siege Treads | x1 | -4/Factory | Preloaded Repaired ---------- Lgt. Treads | 10% | -10/Materials Lgt. Treads | 54% | -10/Materials Imp. Shield Generator | 72% | -8/Materials Seismic Detector | 15% | -8/Materials Lgt. Treads | 80% | -8/Materials Imp. Heat Sink | 62% | -8/Materials Lyr. Medium Armor Plating | 50% | -4/Factory Adv. Cooling System | 41% | -3/Research Studied --------- Lgt. Treads | -9/Materials | Hacked Hvy. Assault Rifle | -9/Materials | Hacked Rocket Launcher | -9/Materials | Hacked Lgt. EM Pulse Cannon | -8/Materials | Hacked Hvy. Particle Cannon | -8/Materials | Hacked Remote Datajack | -7/Factory | Hacked Imp. Deuterium Engine | -7/Factory | Hacked Hvy. Rocket Launcher | -6/Factory | Hacked Fission Core | -6/Factory | Hacked Imp. EM Pulse Cannon | -6/Factory | Hacked Imp. Heavy Treads | -4/Factory | Hacked Com. HERF Cannon | -4/Factory | Hacked Imp. Remote Datajack | -4/Factory | Hacked Micro-nuke Launcher | -4/Factory | Hacked Antimatter Reactor | -4/Factory | Hacked Adv. Heavy Siege Treads | -3/Research | Hacked Enh. Nova Cannon | -2/Quarantine | Hacked Adv. Remote Datajack | -2/Quarantine | Hacked Quantum Reactor | -2/Section 7 | Hacked Hyp. Mass Driver | -2/Section 7 | Hacked Alien Tech Used ----------------- Integrated Mediator Dimensional Node Initializer LRC Storage High-powered Transdimensional Reconstructor Integrated Thermoelectric Network Sigix Sheargun Achievements -------------- Hack Snack Hack The Planet Hackerman I Have Friends Everywhere Join The Dark Side Let Me Out Of Here Mindtrick My Bad RIFT Wizard Satisfying Slow And Deadly Wins The Race Taming Of The Crushers Tank Life Versatile You Will Be Upgraded Zeroed Repercussions Challenges ------------ None Game ------ Seed ThiefRemoteFemtoactuators Manual? 0 Play Time 06:51:53 Cumulative 1268.7 hours Start 2025.11.08 @ 21:10:06 End 2025.11.09 @ 16:22:11 Sessions 5 Manual Loads 0 Difficulty Rogue Special Mode None Game No. 549 Rogue 548 Adventurer 1 Explorer 0 Win Type 0 Total 202 Types 59/17/31/5/2/1/78/3/4/2 Lore% 99 Gallery% 98 Achievement% 75 Wizard Run 0 Options --------- Layout 2 ASCII 0 Keyboard 1 Movement Numpad Keybinds 0 Fullscreen 0 Font 24/Terminus Map View 50x44 Zoom Use 0% Tactical HUD 1 Map Filters NONE Filters NONE Steam 1 RUN: b2db2c00-477d-40e4-b155-b2952a532885